{"text_format":"1","workbook":"xlsx","n_sheets":11,"sheets":["User Guide","Information","AT-Matrix","Checklist","Risk analysis","Table 7-1 Time","Table 7-2 Expertise","Table 7-3 Knowledge","Table 7-4 Opportunity","Table 7-5 Equipment","System"],"not_rendered":{"charts":0,"images":0,"macros":1,"external_links":0,"defined_names":18,"comments":1,"pivot_tables":0},"unopened":[],"bounds":{"document_bytes":16777216,"sheet_cells":100000,"rows_first":2000,"rows_last":500,"rows_between":2000,"halvings":0,"cell_chars":16384,"cell_head_chars":4096},"cells_cut":0,"cells_raw":0,"read":"whole","date_system":"1900"}

{"sheet":"User Guide","index":0,"n_rows":42,"n_cols":1,"rows_kept":42,"cut":false,"hidden":false,"merged":[[0,0,0,9],[20,0,20,9],[21,0,24,9],[41,0,42,9],[1,0,3,9],[4,0,6,9],[38,0,39,9],[34,0,36,9],[25,0,27,9],[29,0,32,9],[10,0,10,9],[17,0,18,9],[8,0,8,9]]}
[{"$f":"MSDocTitle","v":"Software risk analysis according to WELMEC Guide 7.6 chapter 4.1"}]
["How to use this template"]
[]
[]
["This document is intended to simplify the risk analysis and its evaluation process according to WELMEC Guide 7.6, issue 2021. It can replace the Annex I, which is used for a risk analysis according to chapter 4.1 of the guide. The guide contains definitions of generic attack vectors and common assets that need to be protected and secured. The main goal is to demonstrate the completeness of the risk analysis. This document uses extensive tables to list all these attack vectors and the common assets.  In case all combinations of assets and attack vectors are covered by acceptable solutions, this document can be considered a sufficient risk analysis."]
[]
[]
[]
["General information about the manufacturer and the measuring instrument can be entered in the tab \"Information\". There you can also find the section \"Document history\" to list changes and additions made during the evaluation process."]
[]
["The risk analysis itself begins in the tab \"AT-Matrix. There, the “Assets-Threats-Matrix” can be found, which is derived from WELMEC Guide 7.6 and should reflect the architecture of the measuring instrument. It lists the assets to be protected (software, parameters, measurement result, …) in its numbered rows. The table “Assets-Threats-Matrix” is slightly modified compared to WELMEC Guide 7.6, as software itself was added as an asset. This deviation simplifies the documentation of  protection measures for each of the other assets. The columns contain the threats/attack vectors (other software, user interface, communication interface, ...), that might apply to each of the assets. When left-clicking on the cell where the asset row and the threat column cross, a drop down menu opens. In the menu it can be chosen how the threat is covered. The options are:"]
[]
[]
[]
[]
[]
[]
["If the measuring instrument has, for example, no external communication interface, \"NA\" can be chosen in the drop down menu in the tab \"AT-Matrix\" for the columns \"I\" and \"J\".  If the threat is covered by an acceptable solution, \"AS\" should be chosen. In case of a new solution that is not yet covered by WELMEC Guide 7.2, a risk analysis according to WELMEC Guide 7.6 chapter 4.2 should be executed by the manufacturer and provided together with the documentation of the measuring instrument. The lines regarding Asset No. 3 in the AT-Matrix \"Protection of measurement result\" are already set to \"NA\", as the following sections on records and transmission of measurement data should cover all attack vectors. If additional protection of measurement results is needed, this can be changed."]
[]
[]
["Multiple instances of one asset and thread combination are not yet supported. If, for example,  there are two communication interfaces, this has to be explained in the tab \"Checklist\" in the field \"Break down threat\". If an acceptable soluton was used for one instance and the other one is covered by a risk analysis, \"BO\" should be selected and the explanation given in the tab \"Checklist\". There are some fields for future attack vectors, these are marked as \"Reserved\" and should not be used."]
["Once the \"Assets-Threats-Matrix\" is filled in, the documentation process continues in the tab “Checklist”, where the actual documentation of the countermeasures is done. The checklist consists of an extensive table that allows to explain which acceptable solution was used to counter each threat/attack vector for each asset - or refer to a specific risk analysis."]
[]
[]
[]
["The information in “Assets-Threats-Matrix” is linked to the column “Solution” in the tab Checklist by conditional formatting. If “NA” was chosen in the “Assets-Threats-Matrix”, the columns “Countermeasure”, “Break down threat” and “Remarks” are greyed out in \"Checklist\", too, as they do not apply to this measuring instrument. In case another option in the dropdown menu was chosen, the yellow columns “Countermeasure” and “Break down threat” should be filled in by the manufacturer. The column “Remarks” is intended to be used for comments by the conformity assessment body."]
[]
[]
[]
["The column “Break down threat” is intended for a short description of the threat/attack vector. For example, if asset number 4.2 is the stored measurement result and threat number 3 is the communication interface, the explanation in \"Break down threat\" might read as follows: “The stored measurement result is deleted by a command on the RS-232 interface.” If an acceptable solution was used and AS was selected in the “Assets-Threats-Matrix”, the corresponding cell in the column “Countermeasure” could contain: “A protective interface according to WELMEC Guide 7.2 requirement P4 is used and only supported commands are executed. The list of commands can be found in Annex I of the user manual.\""]
[]
[]
[]
[]
["If a risk analysis according to WELMEC Guide 7.6, issue 2021, chapter 4.2 was executed by the manufacturer, the column “Break down threat” would be the same, but the column “Countermeasure” should shortly explain which alternative solution was used, where the risk analysis can be found and what the result of the analysis was. The tab \"Risk analysis\" allows a summary of the results of all risk analyses, but additional documentation that explains how these results were achieved is necessary. See WELMEC Guide 7.6 for further instructions. The tabs “Table 7-1” to “7-5” contain the same information as the tables in the annex of WELMEC Guide 7.6. Please refer to WELMEC Guide 7.6 for further explanations. The tab “System” is used for calculation purposes and conditional formatting and should not be changed."]
[]
[]
[]
["This document was originally created at METAS, examples and explanations were added by PTB. "]
[]
[]
["The complete process of a risk analysis is documented in WELMEC Guide 7.6, issue 2021:\nhttps://www.welmec.org/welmec/documents/guides/7.6/2021/WELMEC_Guide_7.6_v2021.pdf"]

{"sheet":"Information","index":1,"n_rows":14,"n_cols":9,"rows_kept":14,"cut":false,"hidden":false,"merged":[[15,4,15,7],[1,8,1,15],[2,8,21,15],[0,1,0,3],[0,8,0,15],[21,4,21,7],[11,1,11,7],[4,1,4,2],[4,6,4,7],[5,1,5,7],[7,1,7,2],[19,4,19,7],[20,4,20,7],[2,1,2,2],[2,6,2,7],[14,4,14,7],[3,6,3,7],[8,1,8,2],[9,1,9,2],[10,1,10,2],[6,1,6,7],[7,3,7,7],[13,4,13,7],[12,1,12,7],[18,4,18,7],[0,4,0,7],[8,3,8,7],[9,3,9,7],[10,3,10,7],[1,4,1,5],[2,4,2,5],[3,4,3,5],[4,4,4,5],[1,1,1,3],[1,6,1,7],[3,1,3,2],[16,4,16,7],[17,4,17,7]]}
[null,{"$f":"MSDocTitle","v":"Software risk analysis according to WELMEC Guide 7.6 chapter 4.1"},null,null,"Conformity assessment body\nAddress",null,null,null,{"$f":"MSRefNr & \" / V\" & MSRevNr  & \" / \" & MSRevDate","v":"6030.55F01 / V1.8 / 15.05.2025"}]
[null,"Applicant or manufacturer:",null,null,"Authors:",null,"Roles:",null,"General remarks (Line feed with <Alt> + <Enter>)"]
[null,"Name:"]
[null,"Address:"]
[null,"Job number:"]
[]
[null,"Project description:"]
[null,"Instrument type:"]
[null,"Software designation:"]
[null,"Software version:"]
[null,"Comments:"]
[]
[null,"Document history:"]
[null,"Version: ","Date: ","Description:","Remarks:"]

{"sheet":"AT-Matrix","index":2,"n_rows":20,"n_cols":22,"rows_kept":20,"cut":false,"hidden":false,"merged":[[18,1,18,2],[1,1,2,3],[4,4,15,4],[3,5,3,20]]}
[]
[null,"Assets-Threats-Matrix derived from WELMEC Guide 7.2: 2026\n\nThreats consist of at least one asset and one corresponding statement of which security property (availability, integrity and/or authenticity) can be invalidated by the threat by means of an attack vector.",null,null,"  Attack Vector","Inadmissible influence on the measurement process by executing other functions","Inadmissible influence via user interfaces","Inadmissible influence via the boot process","Inadmissible influence via the administration of the operating system","Inadmissible influence via legally non-relevant software","Inadmissible influence by obtaining confidential information","Inadmissible influence by replacing physical parts within the measuring instrument","Inadmissible influence via hardware interfaces","Inadmissible influence by downloading legally relevant software","Inadmissible influence by replacing or removing legally relevant components","Inadmissible influence by man-in-the-middle attacks","Inadmissible influence due to accidental modification","Inadmissible influence by incorrect software identification","Additional attack vector 1","Additional attack vector 2","Additional attack vector 3"]
[null,null,null,null,"No.","IIP1","III1","IIB1","IIA1","IIN1","IIC1","IIR1","III2","IID1","IIR2","IIT1","IIA2","IIS1","IIX1","IIX2","IIX3"]
[null,"Asset No.","Assets/Properties"]
[null,1,"software in EVSE",null,null,"4.3.1.1","4.4.1.1","NA","NA","NA","4.4.1.1","4.8.1.1","4.4.1.1","NA","4.5.2","NA","4.4.1","4.6.1","-","-","-","-"]
[null,{"$f":"B5+1","v":2},"parameters in EVSE",null,null,"4.3.1.1","4.4.1.1","NA","NA","NA","4.4.1.1","4.8.1.1","4.4.1.1","NA","4.5.2","NA","4.4.1","4.6.1","-","-","-","-"]
[null,{"$f":"B6+1","v":3},"measurement data in EVSE",null,null,"4.3.1.1","4.4.1.1","NA","NA","NA","4.4.1.1","4.8.1.1","4.4.1.1","NA","4.5.2","NA","4.4.1","4.6.1","-","-","-","-"]
[null,4,"measurement result in EVSE",null,null,"4.3.1.1","4.4.1.1","NA","NA","NA","4.4.1.1","4.8.1.1","4.4.1.1","NA","4.5.2","NA","4.4.1","4.6.1","-","-","-","-"]
[null,5,"inscriptions for component EVSE",null,null,"4.3.1.1","4.4.1.1","NA","NA","NA","4.4.1.1","4.8.1.1","4.4.1.1","NA","4.5.2","NA","4.4.1","4.6.1","-","-","-","-"]
[null,6,"evidence of an intervention in EVSE",null,null,"4.3.1.1","4.4.1.1","NA","NA","NA","4.4.1.1","4.8.1.1","4.4.1.1","NA","4.5.2","NA","4.4.1","4.6.1","-","-","-","-"]
[null,7,"measurement data transmitted from EVSE to BYOD",null,null,"NA","NA","NA","NA","NA","NA","NA","NA","NA","NA","4.5.3","NA","NA","-","-","-","-"]
[null,{"$f":"B11+1","v":8},"software in BYOD",null,null,"NA","4.4.1.1","NA","4.5.4","4.5.4","4.7.1","NA","4.4.1.1","NA","4.5.2","NA","4.4.1","4.6.1","-","-","-","-"]
[null,{"$f":"B12+1","v":9},"parameters in component B",null,null,"NA","NA","NA","NA","NA","NA","NA","NA","NA","NA","NA","NA","NA","-","-","-","-"]
[null,10,"measurement data in component B",null,null,"NA","NA","NA","NA","NA","NA","NA","NA","NA","NA","NA","NA","NA","-","-","-","-"]
[null,11,"measurement result in BYOD",null,null,"NA","4.4.1.1","NA","4.5.4","4.5.4","4.7.1","NA","4.4.1.1","NA","4.5.2","NA","4.4.1","4.6.1","-","-","-","-"]
[null,12,"inscriptions for component B",null,null,"NA","NA","NA","NA","NA","NA","NA","NA","NA","NA","NA","NA","NA","-","-","-","-"]
[null,{"$f":"B16+1","v":13},"evidence of intervention in component B",null,null,"NA","NA","NA","NA","NA","NA","NA","NA","NA","NA","NA","NA","NA","-","-","-","-"]
[]
[null,"To add an asset, press <Ctrl+Shift+a>!"]
[null,"Comments"]

{"sheet":"Checklist","index":3,"n_rows":213,"n_cols":12,"rows_kept":213,"cut":false,"hidden":false,"merged":[[1,7,3,11],[85,0,100,0],[69,0,84,0],[53,0,68,0],[37,0,52,0],[21,0,36,0],[5,0,20,0],[181,0,196,0],[165,0,180,0],[149,0,164,0],[3,1,3,5],[1,1,1,5],[2,1,2,5],[133,0,148,0],[117,0,132,0],[101,0,116,0]]}
[]
[null,"Annex A - Checklists for Generic Attack Probability Trees "]
[null,"Introduction to checklist:"]
[null,"As stated in 4.1, for simple instruments, for all generic threats with high-level attack vectors that correspond to an acceptable solution or are not applicable, no point score need to be provided for the attack vectors. Instead this checklist can be used. For the generic threats with high-level attack vectors, gereric AtPTs are found in 3.4.1. These correspond to the following checklists.\nIn the column \"Break down threat\", an explication is required on how the attack could be performed. Each threat defined shall correspond to a counter measure, which can be either an acceptable solution from WELMEC 7.2 or an explanation to why it is not applicable. The Notified Body is later responsible for assessing for every countermeasure that it is acceptable. "]
[null,"Asset No.","Attack No.","Asset \ndescription","Attack vector\ndescription","Security property","Description / examples","Countermeasure","Break down attack vector for specific instrument design","Passed / Failed","Solution","Remarks / Attack ID for RA"]
[null,1,"IIP1",{"$f":"INDIRECT(\"'AT-Matrix'!C$\" & INT(B6 + 4))","v":"software in EVSE"},"Inadmissible influence on the measurement process through executing other functions","integrity, authenticity, availability",null,null,null,null,{"$f":"'AT-Matrix'!F5","v":"4.3.1.1"}]
[null,1,"III1","software in EVSE","Inadmissible influence through user interfaces","integrity, authenticity, availability",null,null,null,null,{"$f":"'AT-Matrix'!G5","v":"4.4.1.1"}]
[null,1,"IIB1","software in EVSE","Inadmissible influence through the boot process","integrity, authenticity, availability",null,null,null,null,{"$f":"'AT-Matrix'!H5","v":"NA"}]
[null,1,"IIA1","software in EVSE","Inadmissible influence through the administration of the operating system","integrity, authenticity, availability",null,null,null,null,{"$f":"'AT-Matrix'!I5","v":"NA"}]
[null,1,"IIN1","software in EVSE","Inadmissible influence through legally non-relevant software","integrity, authenticity, availability",null,null,null,null,{"$f":"'AT-Matrix'!J5","v":"NA"}]
[null,1,"IIC1","software in EVSE","Inadmissible influence through obtaining confidential information","integrity, authenticity, availability",null,null,null,null,{"$f":"'AT-Matrix'!K5","v":"4.4.1.1"}]
[null,1,"IIR1","software in EVSE","Inadmissible influence through replacing parts within the measuring instrument","integrity, authenticity, availability",null,null,null,null,{"$f":"'AT-Matrix'!L5","v":"4.8.1.1"}]
[null,1,"III2","software in EVSE","Inadmissible influence through hardware interfaces","integrity, authenticity, availability",null,null,null,null,{"$f":"'AT-Matrix'!M5","v":"4.4.1.1"}]
[null,1,"IID1","software in EVSE","Inadmissible influence through downloading legally relevant software","integrity, authenticity, availability",null,null,null,null,{"$f":"'AT-Matrix'!N5","v":"NA"}]
[null,1,"IIR2","software in EVSE","Inadmissible influence through replacing or removing legally relevant components","integrity, authenticity, availability",null,null,null,null,{"$f":"'AT-Matrix'!O5","v":"4.5.2"}]
[null,1,"IIT1","software in EVSE","Inadmissible influence through man in the middle","integrity, authenticity, availability",null,null,null,null,{"$f":"'AT-Matrix'!P5","v":"NA"}]
[null,1,"IIA2","software in EVSE","Inadmissible influence through accidental modification","integrity, authenticity, availability",null,null,null,null,{"$f":"'AT-Matrix'!Q5","v":"4.4.1"}]
[null,1,"IIS1","software in EVSE","Inadmissible influence through incorrect identification of software","integrity, authenticity, availability",null,null,null,null,{"$f":"'AT-Matrix'!R5","v":"4.6.1"}]
[null,1,{"$f":"'AT-Matrix'!S$3","v":"IIX1"},"software in EVSE",{"$f":"'AT-Matrix'!S$2","v":"Additional attack vector 1"},"integrity, authenticity, availability",null,null,null,null,{"$f":"'AT-Matrix'!S5","v":"-"}]
[null,1,{"$f":"'AT-Matrix'!T$3","v":"IIX2"},"software in EVSE",{"$f":"'AT-Matrix'!T$2","v":"Additional attack vector 2"},"integrity, authenticity, availability",null,null,null,null,{"$f":"'AT-Matrix'!T5","v":"-"}]
[null,1,{"$f":"'AT-Matrix'!U$3","v":"IIX3"},"software in EVSE",{"$f":"'AT-Matrix'!U$2","v":"Additional attack vector 3"},"integrity, authenticity, availability",null,null,null,null,{"$f":"'AT-Matrix'!U5","v":"-"}]
[null,{"$f":"B6+1","v":2},"IIP1",{"$f":"INDIRECT(\"'AT-Matrix'!C$\" & INT(B22 + 4))","v":"parameters in EVSE"},"Inadmissible influence on the measurement process through executing other functions","integrity, authenticity, availability",null,null,null,null,{"$f":"'AT-Matrix'!F6","v":"4.3.1.1"}]
[null,2,"III1","parameters in EVSE","Inadmissible influence through user interfaces","integrity, authenticity, availability",null,null,null,null,{"$f":"'AT-Matrix'!G6","v":"4.4.1.1"}]
[null,2,"IIB1","parameters in EVSE","Inadmissible influence through the boot process","integrity, authenticity, availability",null,null,null,null,{"$f":"'AT-Matrix'!H6","v":"NA"}]
[null,2,"IIA1","parameters in EVSE","Inadmissible influence through the administration of the operating system","integrity, authenticity, availability",null,null,null,null,{"$f":"'AT-Matrix'!I6","v":"NA"}]
[null,2,"IIN1","parameters in EVSE","Inadmissible influence through legally non-relevant software","integrity, authenticity, availability",null,null,null,null,{"$f":"'AT-Matrix'!J6","v":"NA"}]
[null,2,"IIC1","parameters in EVSE","Inadmissible influence through obtaining confidential information","integrity, authenticity, availability",null,null,null,null,{"$f":"'AT-Matrix'!K6","v":"4.4.1.1"}]
[null,2,"IIR1","parameters in EVSE","Inadmissible influence through replacing parts within the measuring instrument","integrity, authenticity, availability",null,null,null,null,{"$f":"'AT-Matrix'!L6","v":"4.8.1.1"}]
[null,2,"III2","parameters in EVSE","Inadmissible influence through hardware interfaces","integrity, authenticity, availability",null,null,null,null,{"$f":"'AT-Matrix'!M6","v":"4.4.1.1"}]
[null,2,"IID1","parameters in EVSE","Inadmissible influence through downloading legally relevant software","integrity, authenticity, availability",null,null,null,null,{"$f":"'AT-Matrix'!N6","v":"NA"}]
[null,2,"IIR2","parameters in EVSE","Inadmissible influence through replacing or removing legally relevant components","integrity, authenticity, availability",null,null,null,null,{"$f":"'AT-Matrix'!O6","v":"4.5.2"}]
[null,2,"IIT1","parameters in EVSE","Inadmissible influence through man in the middle","integrity, authenticity, availability",null,null,null,null,{"$f":"'AT-Matrix'!P6","v":"NA"}]
[null,2,"IIA2","parameters in EVSE","Inadmissible influence through accidental modification","integrity, authenticity, availability",null,null,null,null,{"$f":"'AT-Matrix'!Q6","v":"4.4.1"}]
[null,2,"IIS1","parameters in EVSE","Inadmissible influence through incorrect identification of software","integrity, authenticity, availability",null,null,null,null,{"$f":"'AT-Matrix'!R6","v":"4.6.1"}]
[null,{"$f":"B19+1","v":2},{"$f":"'AT-Matrix'!S$3","v":"IIX1"},"parameters in EVSE",{"$f":"'AT-Matrix'!S$2","v":"Additional attack vector 1"},"integrity, authenticity, availability",null,null,null,null,{"$f":"'AT-Matrix'!S6","v":"-"}]
[null,2,{"$f":"'AT-Matrix'!T$3","v":"IIX2"},"parameters in EVSE",{"$f":"'AT-Matrix'!T$2","v":"Additional attack vector 2"},"integrity, authenticity, availability",null,null,null,null,{"$f":"'AT-Matrix'!T6","v":"-"}]
[null,2,{"$f":"'AT-Matrix'!U$3","v":"IIX3"},"parameters in EVSE",{"$f":"'AT-Matrix'!U$2","v":"Additional attack vector 3"},"integrity, authenticity, availability",null,null,null,null,{"$f":"'AT-Matrix'!U6","v":"-"}]
[null,{"$f":"B22+1","v":3},"IIP1",{"$f":"INDIRECT(\"'AT-Matrix'!C$\" & INT(B38 + 4))","v":"measurement data in EVSE"},"Inadmissible influence on the measurement process through executing other functions","integrity, authenticity, availability",null,null,null,null,{"$f":"'AT-Matrix'!F7","v":"4.3.1.1"}]
[null,3,"III1","measurement data in EVSE","Inadmissible influence through user interfaces","integrity, authenticity, availability",null,null,null,null,{"$f":"'AT-Matrix'!G7","v":"4.4.1.1"}]
[null,3,"IIB1","measurement data in EVSE","Inadmissible influence through the boot process","integrity, authenticity, availability",null,null,null,null,{"$f":"'AT-Matrix'!H7","v":"NA"}]
[null,3,"IIA1","measurement data in EVSE","Inadmissible influence through the administration of the operating system","integrity, authenticity, availability",null,null,null,null,{"$f":"'AT-Matrix'!I7","v":"NA"}]
[null,3,"IIN1","measurement data in EVSE","Inadmissible influence through legally non-relevant software","integrity, authenticity, availability",null,null,null,null,{"$f":"'AT-Matrix'!J7","v":"NA"}]
[null,3,"IIC1","measurement data in EVSE","Inadmissible influence through obtaining confidential information","integrity, authenticity, availability",null,null,null,null,{"$f":"'AT-Matrix'!K7","v":"4.4.1.1"}]
[null,3,"IIR1","measurement data in EVSE","Inadmissible influence through replacing parts within the measuring instrument","integrity, authenticity, availability",null,null,null,null,{"$f":"'AT-Matrix'!L7","v":"4.8.1.1"}]
[null,3,"III2","measurement data in EVSE","Inadmissible influence through hardware interfaces","integrity, authenticity, availability",null,null,null,null,{"$f":"'AT-Matrix'!M7","v":"4.4.1.1"}]
[null,3,"IID1","measurement data in EVSE","Inadmissible influence through downloading legally relevant software","integrity, authenticity, availability",null,null,null,null,{"$f":"'AT-Matrix'!N7","v":"NA"}]
[null,3,"IIR2","measurement data in EVSE","Inadmissible influence through replacing or removing legally relevant components","integrity, authenticity, availability",null,null,null,null,{"$f":"'AT-Matrix'!O7","v":"4.5.2"}]
[null,3,"IIT1","measurement data in EVSE","Inadmissible influence through man in the middle","integrity, authenticity, availability",null,null,null,null,{"$f":"'AT-Matrix'!P7","v":"NA"}]
[null,3,"IIA2","measurement data in EVSE","Inadmissible influence through accidental modification","integrity, authenticity, availability",null,null,null,null,{"$f":"'AT-Matrix'!Q7","v":"4.4.1"}]
[null,3,"IIS1","measurement data in EVSE","Inadmissible influence through incorrect identification of software","integrity, authenticity, availability",null,null,null,null,{"$f":"'AT-Matrix'!R7","v":"4.6.1"}]
[null,{"$f":"B35+1","v":3},{"$f":"'AT-Matrix'!S$3","v":"IIX1"},"measurement data in EVSE",{"$f":"'AT-Matrix'!S$2","v":"Additional attack vector 1"},"integrity, authenticity, availability",null,null,null,null,{"$f":"'AT-Matrix'!S7","v":"-"}]
[null,3,{"$f":"'AT-Matrix'!T$3","v":"IIX2"},"measurement data in EVSE",{"$f":"'AT-Matrix'!T$2","v":"Additional attack vector 2"},"integrity, authenticity, availability",null,null,null,null,{"$f":"'AT-Matrix'!T7","v":"-"}]
[null,3,{"$f":"'AT-Matrix'!U$3","v":"IIX3"},"measurement data in EVSE",{"$f":"'AT-Matrix'!U$2","v":"Additional attack vector 3"},"integrity, authenticity, availability",null,null,null,null,{"$f":"'AT-Matrix'!U7","v":"-"}]
[null,{"$f":"B38+1","v":4},"IIP1",{"$f":"INDIRECT(\"'AT-Matrix'!C$\" & INT(B54 + 4))","v":"measurement result in EVSE"},"Inadmissible influence on the measurement process through executing other functions","integrity, authenticity, availability",null,null,null,null,{"$f":"'AT-Matrix'!F8","v":"4.3.1.1"}]
[null,4,"III1","measurement result in EVSE","Inadmissible influence through user interfaces","integrity, authenticity, availability",null,null,null,null,{"$f":"'AT-Matrix'!G8","v":"4.4.1.1"}]
[null,4,"IIB1","measurement result in EVSE","Inadmissible influence through the boot process","integrity, authenticity, availability",null,null,null,null,{"$f":"'AT-Matrix'!H8","v":"NA"}]
[null,4,"IIA1","measurement result in EVSE","Inadmissible influence through the administration of the operating system","integrity, authenticity, availability",null,null,null,null,{"$f":"'AT-Matrix'!I8","v":"NA"}]
[null,4,"IIN1","measurement result in EVSE","Inadmissible influence through legally non-relevant software","integrity, authenticity, availability",null,null,null,null,{"$f":"'AT-Matrix'!J8","v":"NA"}]
[null,4,"IIC1","measurement result in EVSE","Inadmissible influence through obtaining confidential information","integrity, authenticity, availability",null,null,null,null,{"$f":"'AT-Matrix'!K8","v":"4.4.1.1"}]
[null,4,"IIR1","measurement result in EVSE","Inadmissible influence through replacing parts within the measuring instrument","integrity, authenticity, availability",null,null,null,null,{"$f":"'AT-Matrix'!L8","v":"4.8.1.1"}]
[null,4,"III2","measurement result in EVSE","Inadmissible influence through hardware interfaces","integrity, authenticity, availability",null,null,null,null,{"$f":"'AT-Matrix'!M8","v":"4.4.1.1"}]
[null,4,"IID1","measurement result in EVSE","Inadmissible influence through downloading legally relevant software","integrity, authenticity, availability",null,null,null,null,{"$f":"'AT-Matrix'!N8","v":"NA"}]
[null,4,"IIR2","measurement result in EVSE","Inadmissible influence through replacing or removing legally relevant components","integrity, authenticity, availability",null,null,null,null,{"$f":"'AT-Matrix'!O8","v":"4.5.2"}]
[null,4,"IIT1","measurement result in EVSE","Inadmissible influence through man in the middle","integrity, authenticity, availability",null,null,null,null,{"$f":"'AT-Matrix'!P8","v":"NA"}]
[null,4,"IIA2","measurement result in EVSE","Inadmissible influence through accidental modification","integrity, authenticity, availability",null,null,null,null,{"$f":"'AT-Matrix'!Q8","v":"4.4.1"}]
[null,4,"IIS1","measurement result in EVSE","Inadmissible influence through incorrect identification of software","integrity, authenticity, availability",null,null,null,null,{"$f":"'AT-Matrix'!R8","v":"4.6.1"}]
[null,{"$f":"B51+1","v":4},{"$f":"'AT-Matrix'!S$3","v":"IIX1"},"measurement result in EVSE",{"$f":"'AT-Matrix'!S$2","v":"Additional attack vector 1"},"integrity, authenticity, availability",null,null,null,null,{"$f":"'AT-Matrix'!S8","v":"-"}]
[null,4,{"$f":"'AT-Matrix'!T$3","v":"IIX2"},"measurement result in EVSE",{"$f":"'AT-Matrix'!T$2","v":"Additional attack vector 2"},"integrity, authenticity, availability",null,null,null,null,{"$f":"'AT-Matrix'!T8","v":"-"}]
[null,4,{"$f":"'AT-Matrix'!U$3","v":"IIX3"},"measurement result in EVSE",{"$f":"'AT-Matrix'!U$2","v":"Additional attack vector 3"},"integrity, authenticity, availability",null,null,null,null,{"$f":"'AT-Matrix'!U8","v":"-"}]
[null,{"$f":"B54+1","v":5},"IIP1",{"$f":"INDIRECT(\"'AT-Matrix'!C$\" & INT(B70 + 4))","v":"inscriptions for component EVSE"},"Inadmissible influence on the measurement process through executing other functions","integrity, authenticity, availability",null,null,null,null,{"$f":"'AT-Matrix'!F9","v":"4.3.1.1"}]
[null,5,"III1","inscriptions for component EVSE","Inadmissible influence through user interfaces","integrity, authenticity, availability",null,null,null,null,{"$f":"'AT-Matrix'!G9","v":"4.4.1.1"}]
[null,5,"IIB1","inscriptions for component EVSE","Inadmissible influence through the boot process","integrity, authenticity, availability",null,null,null,null,{"$f":"'AT-Matrix'!H9","v":"NA"}]
[null,5,"IIA1","inscriptions for component EVSE","Inadmissible influence through the administration of the operating system","integrity, authenticity, availability",null,null,null,null,{"$f":"'AT-Matrix'!I9","v":"NA"}]
[null,5,"IIN1","inscriptions for component EVSE","Inadmissible influence through legally non-relevant software","integrity, authenticity, availability",null,null,null,null,{"$f":"'AT-Matrix'!J9","v":"NA"}]
[null,5,"IIC1","inscriptions for component EVSE","Inadmissible influence through obtaining confidential information","integrity, authenticity, availability",null,null,null,null,{"$f":"'AT-Matrix'!K9","v":"4.4.1.1"}]
[null,5,"IIR1","inscriptions for component EVSE","Inadmissible influence through replacing parts within the measuring instrument","integrity, authenticity, availability",null,null,null,null,{"$f":"'AT-Matrix'!L9","v":"4.8.1.1"}]
[null,5,"III2","inscriptions for component EVSE","Inadmissible influence through hardware interfaces","integrity, authenticity, availability",null,null,null,null,{"$f":"'AT-Matrix'!M9","v":"4.4.1.1"}]
[null,5,"IID1","inscriptions for component EVSE","Inadmissible influence through downloading legally relevant software","integrity, authenticity, availability",null,null,null,null,{"$f":"'AT-Matrix'!N9","v":"NA"}]
[null,5,"IIR2","inscriptions for component EVSE","Inadmissible influence through replacing or removing legally relevant components","integrity, authenticity, availability",null,null,null,null,{"$f":"'AT-Matrix'!O9","v":"4.5.2"}]
[null,5,"IIT1","inscriptions for component EVSE","Inadmissible influence through man in the middle","integrity, authenticity, availability",null,null,null,null,{"$f":"'AT-Matrix'!P9","v":"NA"}]
[null,5,"IIA2","inscriptions for component EVSE","Inadmissible influence through accidental modification","integrity, authenticity, availability",null,null,null,null,{"$f":"'AT-Matrix'!Q9","v":"4.4.1"}]
[null,5,"IIS1","inscriptions for component EVSE","Inadmissible influence through incorrect identification of software","integrity, authenticity, availability",null,null,null,null,{"$f":"'AT-Matrix'!R9","v":"4.6.1"}]
[null,{"$f":"B67+1","v":5},{"$f":"'AT-Matrix'!S$3","v":"IIX1"},"inscriptions for component EVSE",{"$f":"'AT-Matrix'!S$2","v":"Additional attack vector 1"},"integrity, authenticity, availability",null,null,null,null,{"$f":"'AT-Matrix'!S9","v":"-"}]
[null,5,{"$f":"'AT-Matrix'!T$3","v":"IIX2"},"inscriptions for component EVSE",{"$f":"'AT-Matrix'!T$2","v":"Additional attack vector 2"},"integrity, authenticity, availability",null,null,null,null,{"$f":"'AT-Matrix'!T9","v":"-"}]
[null,5,{"$f":"'AT-Matrix'!U$3","v":"IIX3"},"inscriptions for component EVSE",{"$f":"'AT-Matrix'!U$2","v":"Additional attack vector 3"},"integrity, authenticity, availability",null,null,null,null,{"$f":"'AT-Matrix'!U9","v":"-"}]
[null,{"$f":"B70+1","v":6},"IIP1",{"$f":"INDIRECT(\"'AT-Matrix'!C$\" & INT(B86 + 4))","v":"evidence of an intervention in EVSE"},"Inadmissible influence on the measurement process through executing other functions","integrity, authenticity, availability",null,null,null,null,{"$f":"'AT-Matrix'!F10","v":"4.3.1.1"}]
[null,6,"III1","evidence of an intervention in EVSE","Inadmissible influence through user interfaces","integrity, authenticity, availability",null,null,null,null,{"$f":"'AT-Matrix'!G10","v":"4.4.1.1"}]
[null,6,"IIB1","evidence of an intervention in EVSE","Inadmissible influence through the boot process","integrity, authenticity, availability",null,null,null,null,{"$f":"'AT-Matrix'!H10","v":"NA"}]
[null,6,"IIA1","evidence of an intervention in EVSE","Inadmissible influence through the administration of the operating system","integrity, authenticity, availability",null,null,null,null,{"$f":"'AT-Matrix'!I10","v":"NA"}]
[null,6,"IIN1","evidence of an intervention in EVSE","Inadmissible influence through legally non-relevant software","integrity, authenticity, availability",null,null,null,null,{"$f":"'AT-Matrix'!J10","v":"NA"}]
[null,6,"IIC1","evidence of an intervention in EVSE","Inadmissible influence through obtaining confidential information","integrity, authenticity, availability",null,null,null,null,{"$f":"'AT-Matrix'!K10","v":"4.4.1.1"}]
[null,6,"IIR1","evidence of an intervention in EVSE","Inadmissible influence through replacing parts within the measuring instrument","integrity, authenticity, availability",null,null,null,null,{"$f":"'AT-Matrix'!L10","v":"4.8.1.1"}]
[null,6,"III2","evidence of an intervention in EVSE","Inadmissible influence through hardware interfaces","integrity, authenticity, availability",null,null,null,null,{"$f":"'AT-Matrix'!M10","v":"4.4.1.1"}]
[null,6,"IID1","evidence of an intervention in EVSE","Inadmissible influence through downloading legally relevant software","integrity, authenticity, availability",null,null,null,null,{"$f":"'AT-Matrix'!N10","v":"NA"}]
[null,6,"IIR2","evidence of an intervention in EVSE","Inadmissible influence through replacing or removing legally relevant components","integrity, authenticity, availability",null,null,null,null,{"$f":"'AT-Matrix'!O10","v":"4.5.2"}]
[null,6,"IIT1","evidence of an intervention in EVSE","Inadmissible influence through man in the middle","integrity, authenticity, availability",null,null,null,null,{"$f":"'AT-Matrix'!P10","v":"NA"}]
[null,6,"IIA2","evidence of an intervention in EVSE","Inadmissible influence through accidental modification","integrity, authenticity, availability",null,null,null,null,{"$f":"'AT-Matrix'!Q10","v":"4.4.1"}]
[null,6,"IIS1","evidence of an intervention in EVSE","Inadmissible influence through incorrect identification of software","integrity, authenticity, availability",null,null,null,null,{"$f":"'AT-Matrix'!R10","v":"4.6.1"}]
[null,{"$f":"B83+1","v":6},{"$f":"'AT-Matrix'!S$3","v":"IIX1"},"evidence of an intervention in EVSE",{"$f":"'AT-Matrix'!S$2","v":"Additional attack vector 1"},"integrity, authenticity, availability",null,null,null,null,{"$f":"'AT-Matrix'!S10","v":"-"}]
[null,6,{"$f":"'AT-Matrix'!T$3","v":"IIX2"},"evidence of an intervention in EVSE",{"$f":"'AT-Matrix'!T$2","v":"Additional attack vector 2"},"integrity, authenticity, availability",null,null,null,null,{"$f":"'AT-Matrix'!T10","v":"-"}]
[null,6,{"$f":"'AT-Matrix'!U$3","v":"IIX3"},"evidence of an intervention in EVSE",{"$f":"'AT-Matrix'!U$2","v":"Additional attack vector 3"},"integrity, authenticity, availability",null,null,null,null,{"$f":"'AT-Matrix'!U10","v":"-"}]
[null,{"$f":"B86+1","v":7},"IIP1",{"$f":"INDIRECT(\"'AT-Matrix'!C$\" & INT(B102 + 4))","v":"measurement data transmitted from EVSE to BYOD"},"Inadmissible influence on the measurement process through executing other functions","integrity, authenticity, availability",null,null,null,null,{"$f":"'AT-Matrix'!F11","v":"NA"}]
[null,7,"III1","measurement data transmitted from EVSE to BYOD","Inadmissible influence through user interfaces","integrity, authenticity, availability",null,null,null,null,{"$f":"'AT-Matrix'!G11","v":"NA"}]
[null,7,"IIB1","measurement data transmitted from EVSE to BYOD","Inadmissible influence through the boot process","integrity, authenticity, availability",null,null,null,null,{"$f":"'AT-Matrix'!H11","v":"NA"}]
[null,7,"IIA1","measurement data transmitted from EVSE to BYOD","Inadmissible influence through the administration of the operating system","integrity, authenticity, availability",null,null,null,null,{"$f":"'AT-Matrix'!I11","v":"NA"}]
[null,7,"IIN1","measurement data transmitted from EVSE to BYOD","Inadmissible influence through legally non-relevant software","integrity, authenticity, availability",null,null,null,null,{"$f":"'AT-Matrix'!J11","v":"NA"}]
[null,7,"IIC1","measurement data transmitted from EVSE to BYOD","Inadmissible influence through obtaining confidential information","integrity, authenticity, availability",null,null,null,null,{"$f":"'AT-Matrix'!K11","v":"NA"}]
[null,7,"IIR1","measurement data transmitted from EVSE to BYOD","Inadmissible influence through replacing parts within the measuring instrument","integrity, authenticity, availability",null,null,null,null,{"$f":"'AT-Matrix'!L11","v":"NA"}]
[null,7,"III2","measurement data transmitted from EVSE to BYOD","Inadmissible influence through hardware interfaces","integrity, authenticity, availability",null,null,null,null,{"$f":"'AT-Matrix'!M11","v":"NA"}]
[null,7,"IID1","measurement data transmitted from EVSE to BYOD","Inadmissible influence through downloading legally relevant software","integrity, authenticity, availability",null,null,null,null,{"$f":"'AT-Matrix'!N11","v":"NA"}]
[null,7,"IIR2","measurement data transmitted from EVSE to BYOD","Inadmissible influence through replacing or removing legally relevant components","integrity, authenticity, availability",null,null,null,null,{"$f":"'AT-Matrix'!O11","v":"NA"}]
[null,7,"IIT1","measurement data transmitted from EVSE to BYOD","Inadmissible influence through man in the middle","integrity, authenticity, availability",null,null,null,null,{"$f":"'AT-Matrix'!P11","v":"4.5.3"}]
[null,7,"IIA2","measurement data transmitted from EVSE to BYOD","Inadmissible influence through accidental modification","integrity, authenticity, availability",null,null,null,null,{"$f":"'AT-Matrix'!Q11","v":"NA"}]
[null,7,"IIS1","measurement data transmitted from EVSE to BYOD","Inadmissible influence through incorrect identification of software","integrity, authenticity, availability",null,null,null,null,{"$f":"'AT-Matrix'!R11","v":"NA"}]
[null,{"$f":"B99+1","v":7},{"$f":"'AT-Matrix'!S$3","v":"IIX1"},"measurement data transmitted from EVSE to BYOD",{"$f":"'AT-Matrix'!S$2","v":"Additional attack vector 1"},"integrity, authenticity, availability",null,null,null,null,{"$f":"'AT-Matrix'!S11","v":"-"}]
[null,7,{"$f":"'AT-Matrix'!T$3","v":"IIX2"},"measurement data transmitted from EVSE to BYOD",{"$f":"'AT-Matrix'!T$2","v":"Additional attack vector 2"},"integrity, authenticity, availability",null,null,null,null,{"$f":"'AT-Matrix'!T11","v":"-"}]
[null,7,{"$f":"'AT-Matrix'!U$3","v":"IIX3"},"measurement data transmitted from EVSE to BYOD",{"$f":"'AT-Matrix'!U$2","v":"Additional attack vector 3"},"integrity, authenticity, availability",null,null,null,null,{"$f":"'AT-Matrix'!U11","v":"-"}]
[null,{"$f":"B102+1","v":8},"IIP1",{"$f":"INDIRECT(\"'AT-Matrix'!C$\" & INT(B118 + 4))","v":"software in BYOD"},"Inadmissible influence on the measurement process through executing other functions","integrity, authenticity, availability",null,null,null,null,{"$f":"'AT-Matrix'!F12","v":"NA"}]
[null,8,"III1","software in BYOD","Inadmissible influence through user interfaces","integrity, authenticity, availability",null,null,null,null,{"$f":"'AT-Matrix'!G12","v":"4.4.1.1"}]
[null,8,"IIB1","software in BYOD","Inadmissible influence through the boot process","integrity, authenticity, availability",null,null,null,null,{"$f":"'AT-Matrix'!H12","v":"NA"}]
[null,8,"IIA1","software in BYOD","Inadmissible influence through the administration of the operating system","integrity, authenticity, availability",null,null,null,null,{"$f":"'AT-Matrix'!I12","v":"4.5.4"}]
[null,8,"IIN1","software in BYOD","Inadmissible influence through legally non-relevant software","integrity, authenticity, availability",null,null,null,null,{"$f":"'AT-Matrix'!J12","v":"4.5.4"}]
[null,8,"IIC1","software in BYOD","Inadmissible influence through obtaining confidential information","integrity, authenticity, availability",null,null,null,null,{"$f":"'AT-Matrix'!K12","v":"4.7.1"}]
[null,8,"IIR1","software in BYOD","Inadmissible influence through replacing parts within the measuring instrument","integrity, authenticity, availability",null,null,null,null,{"$f":"'AT-Matrix'!L12","v":"NA"}]
[null,8,"III2","software in BYOD","Inadmissible influence through hardware interfaces","integrity, authenticity, availability",null,null,null,null,{"$f":"'AT-Matrix'!M12","v":"4.4.1.1"}]
[null,8,"IID1","software in BYOD","Inadmissible influence through downloading legally relevant software","integrity, authenticity, availability",null,null,null,null,{"$f":"'AT-Matrix'!N12","v":"NA"}]
[null,8,"IIR2","software in BYOD","Inadmissible influence through replacing or removing legally relevant components","integrity, authenticity, availability",null,null,null,null,{"$f":"'AT-Matrix'!O12","v":"4.5.2"}]
[null,8,"IIT1","software in BYOD","Inadmissible influence through man in the middle","integrity, authenticity, availability",null,null,null,null,{"$f":"'AT-Matrix'!P12","v":"NA"}]
[null,8,"IIA2","software in BYOD","Inadmissible influence through accidental modification","integrity, authenticity, availability",null,null,null,null,{"$f":"'AT-Matrix'!Q12","v":"4.4.1"}]
[null,8,"IIS1","software in BYOD","Inadmissible influence through incorrect identification of software","integrity, authenticity, availability",null,null,null,null,{"$f":"'AT-Matrix'!R12","v":"4.6.1"}]
[null,{"$f":"B115+1","v":8},{"$f":"'AT-Matrix'!S$3","v":"IIX1"},"software in BYOD",{"$f":"'AT-Matrix'!S$2","v":"Additional attack vector 1"},"integrity, authenticity, availability",null,null,null,null,{"$f":"'AT-Matrix'!S12","v":"-"}]
[null,8,{"$f":"'AT-Matrix'!T$3","v":"IIX2"},"software in BYOD",{"$f":"'AT-Matrix'!T$2","v":"Additional attack vector 2"},"integrity, authenticity, availability",null,null,null,null,{"$f":"'AT-Matrix'!T12","v":"-"}]
[null,8,{"$f":"'AT-Matrix'!U$3","v":"IIX3"},"software in BYOD",{"$f":"'AT-Matrix'!U$2","v":"Additional attack vector 3"},"integrity, authenticity, availability",null,null,null,null,{"$f":"'AT-Matrix'!U12","v":"-"}]
[null,{"$f":"B118+1","v":9},"IIP1",{"$f":"INDIRECT(\"'AT-Matrix'!C$\" & INT(B134 + 4))","v":"parameters in component B"},"Inadmissible influence on the measurement process through executing other functions","integrity, authenticity, availability",null,null,null,null,{"$f":"'AT-Matrix'!F13","v":"NA"}]
[null,9,"III1","parameters in component B","Inadmissible influence through user interfaces","integrity, authenticity, availability",null,null,null,null,{"$f":"'AT-Matrix'!G13","v":"NA"}]
[null,9,"IIB1","parameters in component B","Inadmissible influence through the boot process","integrity, authenticity, availability",null,null,null,null,{"$f":"'AT-Matrix'!H13","v":"NA"}]
[null,9,"IIA1","parameters in component B","Inadmissible influence through the administration of the operating system","integrity, authenticity, availability",null,null,null,null,{"$f":"'AT-Matrix'!I13","v":"NA"}]
[null,9,"IIN1","parameters in component B","Inadmissible influence through legally non-relevant software","integrity, authenticity, availability",null,null,null,null,{"$f":"'AT-Matrix'!J13","v":"NA"}]
[null,9,"IIC1","parameters in component B","Inadmissible influence through obtaining confidential information","integrity, authenticity, availability",null,null,null,null,{"$f":"'AT-Matrix'!K13","v":"NA"}]
[null,9,"IIR1","parameters in component B","Inadmissible influence through replacing parts within the measuring instrument","integrity, authenticity, availability",null,null,null,null,{"$f":"'AT-Matrix'!L13","v":"NA"}]
[null,9,"III2","parameters in component B","Inadmissible influence through hardware interfaces","integrity, authenticity, availability",null,null,null,null,{"$f":"'AT-Matrix'!M13","v":"NA"}]
[null,9,"IID1","parameters in component B","Inadmissible influence through downloading legally relevant software","integrity, authenticity, availability",null,null,null,null,{"$f":"'AT-Matrix'!N13","v":"NA"}]
[null,9,"IIR2","parameters in component B","Inadmissible influence through replacing or removing legally relevant components","integrity, authenticity, availability",null,null,null,null,{"$f":"'AT-Matrix'!O13","v":"NA"}]
[null,9,"IIT1","parameters in component B","Inadmissible influence through man in the middle","integrity, authenticity, availability",null,null,null,null,{"$f":"'AT-Matrix'!P13","v":"NA"}]
[null,9,"IIA2","parameters in component B","Inadmissible influence through accidental modification","integrity, authenticity, availability",null,null,null,null,{"$f":"'AT-Matrix'!Q13","v":"NA"}]
[null,9,"IIS1","parameters in component B","Inadmissible influence through incorrect identification of software","integrity, authenticity, availability",null,null,null,null,{"$f":"'AT-Matrix'!R13","v":"NA"}]
[null,{"$f":"B131+1","v":9},{"$f":"'AT-Matrix'!S$3","v":"IIX1"},"parameters in component B",{"$f":"'AT-Matrix'!S$2","v":"Additional attack vector 1"},"integrity, authenticity, availability",null,null,null,null,{"$f":"'AT-Matrix'!S13","v":"-"}]
[null,9,{"$f":"'AT-Matrix'!T$3","v":"IIX2"},"parameters in component B",{"$f":"'AT-Matrix'!T$2","v":"Additional attack vector 2"},"integrity, authenticity, availability",null,null,null,null,{"$f":"'AT-Matrix'!T13","v":"-"}]
[null,9,{"$f":"'AT-Matrix'!U$3","v":"IIX3"},"parameters in component B",{"$f":"'AT-Matrix'!U$2","v":"Additional attack vector 3"},"integrity, authenticity, availability",null,null,null,null,{"$f":"'AT-Matrix'!U13","v":"-"}]
[null,{"$f":"B134+1","v":10},"IIP1",{"$f":"INDIRECT(\"'AT-Matrix'!C$\" & INT(B150 + 4))","v":"measurement data in component B"},"Inadmissible influence on the measurement process through executing other functions","integrity, authenticity, availability",null,null,null,null,{"$f":"'AT-Matrix'!F14","v":"NA"}]
[null,10,"III1","measurement data in component B","Inadmissible influence through user interfaces","integrity, authenticity, availability",null,null,null,null,{"$f":"'AT-Matrix'!G14","v":"NA"}]
[null,10,"IIB1","measurement data in component B","Inadmissible influence through the boot process","integrity, authenticity, availability",null,null,null,null,{"$f":"'AT-Matrix'!H14","v":"NA"}]
[null,10,"IIA1","measurement data in component B","Inadmissible influence through the administration of the operating system","integrity, authenticity, availability",null,null,null,null,{"$f":"'AT-Matrix'!I14","v":"NA"}]
[null,10,"IIN1","measurement data in component B","Inadmissible influence through legally non-relevant software","integrity, authenticity, availability",null,null,null,null,{"$f":"'AT-Matrix'!J14","v":"NA"}]
[null,10,"IIC1","measurement data in component B","Inadmissible influence through obtaining confidential information","integrity, authenticity, availability",null,null,null,null,{"$f":"'AT-Matrix'!K14","v":"NA"}]
[null,10,"IIR1","measurement data in component B","Inadmissible influence through replacing parts within the measuring instrument","integrity, authenticity, availability",null,null,null,null,{"$f":"'AT-Matrix'!L14","v":"NA"}]
[null,10,"III2","measurement data in component B","Inadmissible influence through hardware interfaces","integrity, authenticity, availability",null,null,null,null,{"$f":"'AT-Matrix'!M14","v":"NA"}]
[null,10,"IID1","measurement data in component B","Inadmissible influence through downloading legally relevant software","integrity, authenticity, availability",null,null,null,null,{"$f":"'AT-Matrix'!N14","v":"NA"}]
[null,10,"IIR2","measurement data in component B","Inadmissible influence through replacing or removing legally relevant components","integrity, authenticity, availability",null,null,null,null,{"$f":"'AT-Matrix'!O14","v":"NA"}]
[null,10,"IIT1","measurement data in component B","Inadmissible influence through man in the middle","integrity, authenticity, availability",null,null,null,null,{"$f":"'AT-Matrix'!P14","v":"NA"}]
[null,10,"IIA2","measurement data in component B","Inadmissible influence through accidental modification","integrity, authenticity, availability",null,null,null,null,{"$f":"'AT-Matrix'!Q14","v":"NA"}]
[null,10,"IIS1","measurement data in component B","Inadmissible influence through incorrect identification of software","integrity, authenticity, availability",null,null,null,null,{"$f":"'AT-Matrix'!R14","v":"NA"}]
[null,{"$f":"B147+1","v":10},{"$f":"'AT-Matrix'!S$3","v":"IIX1"},"measurement data in component B",{"$f":"'AT-Matrix'!S$2","v":"Additional attack vector 1"},"integrity, authenticity, availability",null,null,null,null,{"$f":"'AT-Matrix'!S14","v":"-"}]
[null,10,{"$f":"'AT-Matrix'!T$3","v":"IIX2"},"measurement data in component B",{"$f":"'AT-Matrix'!T$2","v":"Additional attack vector 2"},"integrity, authenticity, availability",null,null,null,null,{"$f":"'AT-Matrix'!T14","v":"-"}]
[null,10,{"$f":"'AT-Matrix'!U$3","v":"IIX3"},"measurement data in component B",{"$f":"'AT-Matrix'!U$2","v":"Additional attack vector 3"},"integrity, authenticity, availability",null,null,null,null,{"$f":"'AT-Matrix'!U14","v":"-"}]
[null,{"$f":"B150+1","v":11},"IIP1",{"$f":"INDIRECT(\"'AT-Matrix'!C$\" & INT(B166 + 4))","v":"measurement result in BYOD"},"Inadmissible influence on the measurement process through executing other functions","integrity, authenticity, availability",null,null,null,null,{"$f":"'AT-Matrix'!F15","v":"NA"}]
[null,11,"III1","measurement result in BYOD","Inadmissible influence through user interfaces","integrity, authenticity, availability",null,null,null,null,{"$f":"'AT-Matrix'!G15","v":"4.4.1.1"}]
[null,11,"IIB1","measurement result in BYOD","Inadmissible influence through the boot process","integrity, authenticity, availability",null,null,null,null,{"$f":"'AT-Matrix'!H15","v":"NA"}]
[null,11,"IIA1","measurement result in BYOD","Inadmissible influence through the administration of the operating system","integrity, authenticity, availability",null,null,null,null,{"$f":"'AT-Matrix'!I15","v":"4.5.4"}]
[null,11,"IIN1","measurement result in BYOD","Inadmissible influence through legally non-relevant software","integrity, authenticity, availability",null,null,null,null,{"$f":"'AT-Matrix'!J15","v":"4.5.4"}]
[null,11,"IIC1","measurement result in BYOD","Inadmissible influence through obtaining confidential information","integrity, authenticity, availability",null,null,null,null,{"$f":"'AT-Matrix'!K15","v":"4.7.1"}]
[null,11,"IIR1","measurement result in BYOD","Inadmissible influence through replacing parts within the measuring instrument","integrity, authenticity, availability",null,null,null,null,{"$f":"'AT-Matrix'!L15","v":"NA"}]
[null,11,"III2","measurement result in BYOD","Inadmissible influence through hardware interfaces","integrity, authenticity, availability",null,null,null,null,{"$f":"'AT-Matrix'!M15","v":"4.4.1.1"}]
[null,11,"IID1","measurement result in BYOD","Inadmissible influence through downloading legally relevant software","integrity, authenticity, availability",null,null,null,null,{"$f":"'AT-Matrix'!N15","v":"NA"}]
[null,11,"IIR2","measurement result in BYOD","Inadmissible influence through replacing or removing legally relevant components","integrity, authenticity, availability",null,null,null,null,{"$f":"'AT-Matrix'!O15","v":"4.5.2"}]
[null,11,"IIT1","measurement result in BYOD","Inadmissible influence through man in the middle","integrity, authenticity, availability",null,null,null,null,{"$f":"'AT-Matrix'!P15","v":"NA"}]
[null,11,"IIA2","measurement result in BYOD","Inadmissible influence through accidental modification","integrity, authenticity, availability",null,null,null,null,{"$f":"'AT-Matrix'!Q15","v":"4.4.1"}]
[null,11,"IIS1","measurement result in BYOD","Inadmissible influence through incorrect identification of software","integrity, authenticity, availability",null,null,null,null,{"$f":"'AT-Matrix'!R15","v":"4.6.1"}]
[null,{"$f":"B163+1","v":11},{"$f":"'AT-Matrix'!S$3","v":"IIX1"},"measurement result in BYOD",{"$f":"'AT-Matrix'!S$2","v":"Additional attack vector 1"},"integrity, authenticity, availability",null,null,null,null,{"$f":"'AT-Matrix'!S15","v":"-"}]
[null,11,{"$f":"'AT-Matrix'!T$3","v":"IIX2"},"measurement result in BYOD",{"$f":"'AT-Matrix'!T$2","v":"Additional attack vector 2"},"integrity, authenticity, availability",null,null,null,null,{"$f":"'AT-Matrix'!T15","v":"-"}]
[null,11,{"$f":"'AT-Matrix'!U$3","v":"IIX3"},"measurement result in BYOD",{"$f":"'AT-Matrix'!U$2","v":"Additional attack vector 3"},"integrity, authenticity, availability",null,null,null,null,{"$f":"'AT-Matrix'!U15","v":"-"}]
[null,{"$f":"B166+1","v":12},"IIP1",{"$f":"INDIRECT(\"'AT-Matrix'!C$\" & INT(B182 + 4))","v":"inscriptions for component B"},"Inadmissible influence on the measurement process through executing other functions","integrity, authenticity, availability",null,null,null,null,{"$f":"'AT-Matrix'!F16","v":"NA"}]
[null,12,"III1","inscriptions for component B","Inadmissible influence through user interfaces","integrity, authenticity, availability",null,null,null,null,{"$f":"'AT-Matrix'!G16","v":"NA"}]
[null,12,"IIB1","inscriptions for component B","Inadmissible influence through the boot process","integrity, authenticity, availability",null,null,null,null,{"$f":"'AT-Matrix'!H16","v":"NA"}]
[null,12,"IIA1","inscriptions for component B","Inadmissible influence through the administration of the operating system","integrity, authenticity, availability",null,null,null,null,{"$f":"'AT-Matrix'!I16","v":"NA"}]
[null,12,"IIN1","inscriptions for component B","Inadmissible influence through legally non-relevant software","integrity, authenticity, availability",null,null,null,null,{"$f":"'AT-Matrix'!J16","v":"NA"}]
[null,12,"IIC1","inscriptions for component B","Inadmissible influence through obtaining confidential information","integrity, authenticity, availability",null,null,null,null,{"$f":"'AT-Matrix'!K16","v":"NA"}]
[null,12,"IIR1","inscriptions for component B","Inadmissible influence through replacing parts within the measuring instrument","integrity, authenticity, availability",null,null,null,null,{"$f":"'AT-Matrix'!L16","v":"NA"}]
[null,12,"III2","inscriptions for component B","Inadmissible influence through hardware interfaces","integrity, authenticity, availability",null,null,null,null,{"$f":"'AT-Matrix'!M16","v":"NA"}]
[null,12,"IID1","inscriptions for component B","Inadmissible influence through downloading legally relevant software","integrity, authenticity, availability",null,null,null,null,{"$f":"'AT-Matrix'!N16","v":"NA"}]
[null,12,"IIR2","inscriptions for component B","Inadmissible influence through replacing or removing legally relevant components","integrity, authenticity, availability",null,null,null,null,{"$f":"'AT-Matrix'!O16","v":"NA"}]
[null,12,"IIT1","inscriptions for component B","Inadmissible influence through man in the middle","integrity, authenticity, availability",null,null,null,null,{"$f":"'AT-Matrix'!P16","v":"NA"}]
[null,12,"IIA2","inscriptions for component B","Inadmissible influence through accidental modification","integrity, authenticity, availability",null,null,null,null,{"$f":"'AT-Matrix'!Q16","v":"NA"}]
[null,12,"IIS1","inscriptions for component B","Inadmissible influence through incorrect identification of software","integrity, authenticity, availability",null,null,null,null,{"$f":"'AT-Matrix'!R16","v":"NA"}]
[null,{"$f":"B179+1","v":12},{"$f":"'AT-Matrix'!S$3","v":"IIX1"},"inscriptions for component B",{"$f":"'AT-Matrix'!S$2","v":"Additional attack vector 1"},"integrity, authenticity, availability",null,null,null,null,{"$f":"'AT-Matrix'!S16","v":"-"}]
[null,12,{"$f":"'AT-Matrix'!T$3","v":"IIX2"},"inscriptions for component B",{"$f":"'AT-Matrix'!T$2","v":"Additional attack vector 2"},"integrity, authenticity, availability",null,null,null,null,{"$f":"'AT-Matrix'!T16","v":"-"}]
[null,12,{"$f":"'AT-Matrix'!U$3","v":"IIX3"},"inscriptions for component B",{"$f":"'AT-Matrix'!U$2","v":"Additional attack vector 3"},"integrity, authenticity, availability",null,null,null,null,{"$f":"'AT-Matrix'!U16","v":"-"}]
[null,{"$f":"B182+1","v":13},"IIP1",{"$f":"INDIRECT(\"'AT-Matrix'!C$\" & INT(B198 + 4))","v":"evidence of intervention in component B"},"Inadmissible influence on the measurement process through executing other functions","integrity, authenticity, availability",null,null,null,null,{"$f":"INDIRECT(\"'AT-Matrix'!G$\" & INT(B198 + 4))","v":"NA"}]
[null,13,"III1","evidence of intervention in component B","Inadmissible influence through user interfaces","integrity, authenticity, availability",null,null,null,null,{"$f":"INDIRECT(\"'AT-Matrix'!H$\" & INT(B199 + 4))","v":"NA"}]
[null,13,"IIB1","evidence of intervention in component B","Inadmissible influence through the boot process","integrity, authenticity, availability",null,null,null,null,{"$f":"INDIRECT(\"'AT-Matrix'!I$\" & INT(B200 + 4))","v":"NA"}]
[null,13,"IIA1","evidence of intervention in component B","Inadmissible influence through the administration of the operating system","integrity, authenticity, availability",null,null,null,null,{"$f":"INDIRECT(\"'AT-Matrix'!J$\" & INT(B201 + 4))","v":"NA"}]
[null,13,"IIN1","evidence of intervention in component B","Inadmissible influence through legally non-relevant software","integrity, authenticity, availability",null,null,null,null,{"$f":"INDIRECT(\"'AT-Matrix'!K$\" & INT(B202 + 4))","v":"NA"}]
[null,13,"IIC1","evidence of intervention in component B","Inadmissible influence through obtaining confidential information","integrity, authenticity, availability",null,null,null,null,{"$f":"INDIRECT(\"'AT-Matrix'!L$\" & INT(B203 + 4))","v":"NA"}]
[null,13,"IIR1","evidence of intervention in component B","Inadmissible influence through replacing parts within the measuring instrument","integrity, authenticity, availability",null,null,null,null,{"$f":"INDIRECT(\"'AT-Matrix'!M$\" & INT(B204 + 4))","v":"NA"}]
[null,13,"III2","evidence of intervention in component B","Inadmissible influence through hardware interfaces","integrity, authenticity, availability",null,null,null,null,{"$f":"INDIRECT(\"'AT-Matrix'!N$\" & INT(B205 + 4))","v":"NA"}]
[null,13,"IID1","evidence of intervention in component B","Inadmissible influence through downloading legally relevant software","integrity, authenticity, availability",null,null,null,null,{"$f":"INDIRECT(\"'AT-Matrix'!O$\" & INT(B206 + 4))","v":"NA"}]
[null,13,"IIR2","evidence of intervention in component B","Inadmissible influence through replacing or removing legally relevant components","integrity, authenticity, availability",null,null,null,null,{"$f":"INDIRECT(\"'AT-Matrix'!P$\" & INT(B207 + 4))","v":"NA"}]
[null,13,"IIT1","evidence of intervention in component B","Inadmissible influence through man in the middle","integrity, authenticity, availability",null,null,null,null,{"$f":"INDIRECT(\"'AT-Matrix'!Q$\" & INT(B208 + 4))","v":"NA"}]
[null,13,"IIA2","evidence of intervention in component B","Inadmissible influence through accidental modification","integrity, authenticity, availability",null,null,null,null,{"$f":"INDIRECT(\"'AT-Matrix'!R$\" & INT(B209 + 4))","v":"NA"}]
[null,{"$f":"B194+1","v":13},"IIS1","evidence of intervention in component B","Inadmissible influence through incorrect identification of software","integrity, authenticity, availability",null,null,null,null,"NA"]
[null,13,{"$f":"'AT-Matrix'!S$3","v":"IIX1"},"evidence of intervention in component B",{"$f":"'AT-Matrix'!S$2","v":"Additional attack vector 1"},"integrity, authenticity, availability",null,null,null,null,{"$f":"INDIRECT(\"'AT-Matrix'!T$\" & INT(B211 + 4))","v":"-"}]
[null,13,{"$f":"'AT-Matrix'!T$3","v":"IIX2"},"evidence of intervention in component B",{"$f":"'AT-Matrix'!T$2","v":"Additional attack vector 2"},"integrity, authenticity, availability",null,null,null,null,{"$f":"INDIRECT(\"'AT-Matrix'!U$\" & INT(B212 + 4))","v":"-"}]
[null,13,{"$f":"'AT-Matrix'!U$3","v":"IIX3"},"evidence of intervention in component B",{"$f":"'AT-Matrix'!U$2","v":"Additional attack vector 3"},"integrity, authenticity, availability",null,null,null,null,{"$f":"INDIRECT(\"'AT-Matrix'!V$\" & INT(B213 + 4))","v":"-"}]

{"sheet":"Risk analysis","index":4,"n_rows":499,"n_cols":15,"rows_kept":499,"cut":false,"hidden":false,"merged":[[1,7,1,9],[5,1,6,1],[2,1,2,14],[5,2,6,2],[3,2,3,14],[4,2,4,14],[5,14,6,14],[5,3,6,3],[5,4,6,4],[5,10,6,10],[5,11,6,11],[5,13,6,13],[1,10,1,13]]}
[]
[null,"Risk analysis according to the WELMEC Guide 7.6:2021"]
[null,"*Impact score:"]
[null,"1/3","for attacks needing to be repeated for each individual measurement event"]
[null,1,"for attacks executed once affecting all future (or past)"]
[null,"Asset Nr.","DELETE Threat Nr.","Attack Nr.","Attack vector description","Time","Expertise","Knowledge","Window of opportunity","Equipment","Total resilience","Probability score","Impact score*","Risk","Justification"]
[null,null,null,null,null,"[0 to 19]","[0 to 8]","[0 to 11]","[0 to 10]","[0 to 9]",null,null,"[1 ; 1/3]"]
[null,null,null,null,null,null,null,null,null,null,{"$f":"SUM(F8:J8)","v":0},{"$f":"VLOOKUP(K8,System!$D$23:$F$27,3,TRUE)","v":5},1,{"$f":"L8*M8","v":5}]
[null,null,null,null,null,null,null,null,null,null,{"$f":"SUM(F9:J9)","v":0},{"$f":"VLOOKUP(K9,System!$D$23:$F$27,3,TRUE)","v":5},1,{"$f":"L9*M9","v":5}]
[null,null,null,null,null,null,null,null,null,null,0,{"$f":"VLOOKUP(K10,System!$D$23:$F$27,3,TRUE)","v":5},1,5]
[null,null,null,null,null,null,null,null,null,null,0,{"$f":"VLOOKUP(K11,System!$D$23:$F$27,3,TRUE)","v":5},1,5]
[null,null,null,null,null,null,null,null,null,null,0,{"$f":"VLOOKUP(K12,System!$D$23:$F$27,3,TRUE)","v":5},1,5]
[null,null,null,null,null,null,null,null,null,null,0,{"$f":"VLOOKUP(K13,System!$D$23:$F$27,3,TRUE)","v":5},1,5]
[null,null,null,null,null,null,null,null,null,null,0,{"$f":"VLOOKUP(K14,System!$D$23:$F$27,3,TRUE)","v":5},1,5]
[null,null,null,null,null,null,null,null,null,null,0,{"$f":"VLOOKUP(K15,System!$D$23:$F$27,3,TRUE)","v":5},1,5]
[null,null,null,null,null,null,null,null,null,null,0,{"$f":"VLOOKUP(K16,System!$D$23:$F$27,3,TRUE)","v":5},1,5]
[null,null,null,null,null,null,null,null,null,null,0,{"$f":"VLOOKUP(K17,System!$D$23:$F$27,3,TRUE)","v":5},1,5]
[null,null,null,null,null,null,null,null,null,null,0,{"$f":"VLOOKUP(K18,System!$D$23:$F$27,3,TRUE)","v":5},1,5]
[null,null,null,null,null,null,null,null,null,null,0,{"$f":"VLOOKUP(K19,System!$D$23:$F$27,3,TRUE)","v":5},1,5]
[null,null,null,null,null,null,null,null,null,null,0,{"$f":"VLOOKUP(K20,System!$D$23:$F$27,3,TRUE)","v":5},1,5]
[null,null,null,null,null,null,null,null,null,null,0,{"$f":"VLOOKUP(K21,System!$D$23:$F$27,3,TRUE)","v":5},1,5]
[null,null,null,null,null,null,null,null,null,null,0,{"$f":"VLOOKUP(K22,System!$D$23:$F$27,3,TRUE)","v":5},1,5]
[null,null,null,null,null,null,null,null,null,null,0,{"$f":"VLOOKUP(K23,System!$D$23:$F$27,3,TRUE)","v":5},1,5]
[null,null,null,null,null,null,null,null,null,null,0,{"$f":"VLOOKUP(K24,System!$D$23:$F$27,3,TRUE)","v":5},1,5]
[null,null,null,null,null,null,null,null,null,null,0,{"$f":"VLOOKUP(K25,System!$D$23:$F$27,3,TRUE)","v":5},1,5]
[null,null,null,null,null,null,null,null,null,null,0,{"$f":"VLOOKUP(K26,System!$D$23:$F$27,3,TRUE)","v":5},1,5]
[null,null,null,null,null,null,null,null,null,null,0,{"$f":"VLOOKUP(K27,System!$D$23:$F$27,3,TRUE)","v":5},1,5]
[null,null,null,null,null,null,null,null,null,null,0,{"$f":"VLOOKUP(K28,System!$D$23:$F$27,3,TRUE)","v":5},1,5]
[null,null,null,null,null,null,null,null,null,null,0,{"$f":"VLOOKUP(K29,System!$D$23:$F$27,3,TRUE)","v":5},1,5]
[null,null,null,null,null,null,null,null,null,null,0,{"$f":"VLOOKUP(K30,System!$D$23:$F$27,3,TRUE)","v":5},1,5]
[null,null,null,null,null,null,null,null,null,null,0,{"$f":"VLOOKUP(K31,System!$D$23:$F$27,3,TRUE)","v":5},1,5]
[null,null,null,null,null,null,null,null,null,null,0,{"$f":"VLOOKUP(K32,System!$D$23:$F$27,3,TRUE)","v":5},1,5]
[null,null,null,null,null,null,null,null,null,null,0,{"$f":"VLOOKUP(K33,System!$D$23:$F$27,3,TRUE)","v":5},1,5]
[null,null,null,null,null,null,null,null,null,null,0,{"$f":"VLOOKUP(K34,System!$D$23:$F$27,3,TRUE)","v":5},1,5]
[null,null,null,null,null,null,null,null,null,null,0,{"$f":"VLOOKUP(K35,System!$D$23:$F$27,3,TRUE)","v":5},1,5]
[null,null,null,null,null,null,null,null,null,null,0,{"$f":"VLOOKUP(K36,System!$D$23:$F$27,3,TRUE)","v":5},1,5]
[null,null,null,null,null,null,null,null,null,null,0,{"$f":"VLOOKUP(K37,System!$D$23:$F$27,3,TRUE)","v":5},1,5]
[null,null,null,null,null,null,null,null,null,null,0,{"$f":"VLOOKUP(K38,System!$D$23:$F$27,3,TRUE)","v":5},1,5]
[null,null,null,null,null,null,null,null,null,null,0,{"$f":"VLOOKUP(K39,System!$D$23:$F$27,3,TRUE)","v":5},1,5]
[null,null,null,null,null,null,null,null,null,null,0,{"$f":"VLOOKUP(K40,System!$D$23:$F$27,3,TRUE)","v":5},1,5]
[null,null,null,null,null,null,null,null,null,null,0,{"$f":"VLOOKUP(K41,System!$D$23:$F$27,3,TRUE)","v":5},1,5]
[null,null,null,null,null,null,null,null,null,null,0,{"$f":"VLOOKUP(K42,System!$D$23:$F$27,3,TRUE)","v":5},1,5]
[null,null,null,null,null,null,null,null,null,null,0,{"$f":"VLOOKUP(K43,System!$D$23:$F$27,3,TRUE)","v":5},1,5]
[null,null,null,null,null,null,null,null,null,null,0,{"$f":"VLOOKUP(K44,System!$D$23:$F$27,3,TRUE)","v":5},1,5]
[null,null,null,null,null,null,null,null,null,null,0,{"$f":"VLOOKUP(K45,System!$D$23:$F$27,3,TRUE)","v":5},1,5]
[null,null,null,null,null,null,null,null,null,null,0,{"$f":"VLOOKUP(K46,System!$D$23:$F$27,3,TRUE)","v":5},1,5]
[null,null,null,null,null,null,null,null,null,null,0,{"$f":"VLOOKUP(K47,System!$D$23:$F$27,3,TRUE)","v":5},1,5]
[null,null,null,null,null,null,null,null,null,null,0,{"$f":"VLOOKUP(K48,System!$D$23:$F$27,3,TRUE)","v":5},1,5]
[null,null,null,null,null,null,null,null,null,null,0,{"$f":"VLOOKUP(K49,System!$D$23:$F$27,3,TRUE)","v":5},1,5]
[null,null,null,null,null,null,null,null,null,null,0,{"$f":"VLOOKUP(K50,System!$D$23:$F$27,3,TRUE)","v":5},1,5]
[null,null,null,null,null,null,null,null,null,null,0,{"$f":"VLOOKUP(K51,System!$D$23:$F$27,3,TRUE)","v":5},1,5]
[null,null,null,null,null,null,null,null,null,null,0,{"$f":"VLOOKUP(K52,System!$D$23:$F$27,3,TRUE)","v":5},1,5]
[null,null,null,null,null,null,null,null,null,null,0,{"$f":"VLOOKUP(K53,System!$D$23:$F$27,3,TRUE)","v":5},1,5]
[null,null,null,null,null,null,null,null,null,null,0,{"$f":"VLOOKUP(K54,System!$D$23:$F$27,3,TRUE)","v":5},1,5]
[null,null,null,null,null,null,null,null,null,null,0,{"$f":"VLOOKUP(K55,System!$D$23:$F$27,3,TRUE)","v":5},1,5]
[null,null,null,null,null,null,null,null,null,null,0,{"$f":"VLOOKUP(K56,System!$D$23:$F$27,3,TRUE)","v":5},1,5]
[null,null,null,null,null,null,null,null,null,null,0,{"$f":"VLOOKUP(K57,System!$D$23:$F$27,3,TRUE)","v":5},1,5]
[null,null,null,null,null,null,null,null,null,null,0,{"$f":"VLOOKUP(K58,System!$D$23:$F$27,3,TRUE)","v":5},1,5]
[null,null,null,null,null,null,null,null,null,null,0,{"$f":"VLOOKUP(K59,System!$D$23:$F$27,3,TRUE)","v":5},1,5]
[null,null,null,null,null,null,null,null,null,null,0,{"$f":"VLOOKUP(K60,System!$D$23:$F$27,3,TRUE)","v":5},1,5]
[null,null,null,null,null,null,null,null,null,null,0,{"$f":"VLOOKUP(K61,System!$D$23:$F$27,3,TRUE)","v":5},1,5]
[null,null,null,null,null,null,null,null,null,null,0,{"$f":"VLOOKUP(K62,System!$D$23:$F$27,3,TRUE)","v":5},1,5]
[null,null,null,null,null,null,null,null,null,null,0,{"$f":"VLOOKUP(K63,System!$D$23:$F$27,3,TRUE)","v":5},1,5]
[null,null,null,null,null,null,null,null,null,null,0,{"$f":"VLOOKUP(K64,System!$D$23:$F$27,3,TRUE)","v":5},1,5]
[null,null,null,null,null,null,null,null,null,null,0,{"$f":"VLOOKUP(K65,System!$D$23:$F$27,3,TRUE)","v":5},1,5]
[null,null,null,null,null,null,null,null,null,null,0,{"$f":"VLOOKUP(K66,System!$D$23:$F$27,3,TRUE)","v":5},1,5]
[null,null,null,null,null,null,null,null,null,null,0,{"$f":"VLOOKUP(K67,System!$D$23:$F$27,3,TRUE)","v":5},1,5]
[null,null,null,null,null,null,null,null,null,null,0,{"$f":"VLOOKUP(K68,System!$D$23:$F$27,3,TRUE)","v":5},1,5]
[null,null,null,null,null,null,null,null,null,null,0,{"$f":"VLOOKUP(K69,System!$D$23:$F$27,3,TRUE)","v":5},1,5]
[null,null,null,null,null,null,null,null,null,null,0,{"$f":"VLOOKUP(K70,System!$D$23:$F$27,3,TRUE)","v":5},1,5]
[null,null,null,null,null,null,null,null,null,null,0,{"$f":"VLOOKUP(K71,System!$D$23:$F$27,3,TRUE)","v":5},1,5]
[null,null,null,null,null,null,null,null,null,null,0,{"$f":"VLOOKUP(K72,System!$D$23:$F$27,3,TRUE)","v":5},1,5]
[null,null,null,null,null,null,null,null,null,null,{"$f":"SUM(F73:J73)","v":0},{"$f":"VLOOKUP(K73,System!$D$23:$F$27,3,TRUE)","v":5},1,{"$f":"L73*M73","v":5}]
[null,null,null,null,null,null,null,null,null,null,0,{"$f":"VLOOKUP(K74,System!$D$23:$F$27,3,TRUE)","v":5},1,5]
[null,null,null,null,null,null,null,null,null,null,0,{"$f":"VLOOKUP(K75,System!$D$23:$F$27,3,TRUE)","v":5},1,5]
[null,null,null,null,null,null,null,null,null,null,0,{"$f":"VLOOKUP(K76,System!$D$23:$F$27,3,TRUE)","v":5},1,5]
[null,null,null,null,null,null,null,null,null,null,0,{"$f":"VLOOKUP(K77,System!$D$23:$F$27,3,TRUE)","v":5},1,5]
[null,null,null,null,null,null,null,null,null,null,0,{"$f":"VLOOKUP(K78,System!$D$23:$F$27,3,TRUE)","v":5},1,5]
[null,null,null,null,null,null,null,null,null,null,0,{"$f":"VLOOKUP(K79,System!$D$23:$F$27,3,TRUE)","v":5},1,5]
[null,null,null,null,null,null,null,null,null,null,0,{"$f":"VLOOKUP(K80,System!$D$23:$F$27,3,TRUE)","v":5},1,5]
[null,null,null,null,null,null,null,null,null,null,0,{"$f":"VLOOKUP(K81,System!$D$23:$F$27,3,TRUE)","v":5},1,5]
[null,null,null,null,null,null,null,null,null,null,0,{"$f":"VLOOKUP(K82,System!$D$23:$F$27,3,TRUE)","v":5},1,5]
[null,null,null,null,null,null,null,null,null,null,0,{"$f":"VLOOKUP(K83,System!$D$23:$F$27,3,TRUE)","v":5},1,5]
[null,null,null,null,null,null,null,null,null,null,0,{"$f":"VLOOKUP(K84,System!$D$23:$F$27,3,TRUE)","v":5},1,5]
[null,null,null,null,null,null,null,null,null,null,0,{"$f":"VLOOKUP(K85,System!$D$23:$F$27,3,TRUE)","v":5},1,5]
[null,null,null,null,null,null,null,null,null,null,0,{"$f":"VLOOKUP(K86,System!$D$23:$F$27,3,TRUE)","v":5},1,5]
[null,null,null,null,null,null,null,null,null,null,0,{"$f":"VLOOKUP(K87,System!$D$23:$F$27,3,TRUE)","v":5},1,5]
[null,null,null,null,null,null,null,null,null,null,0,{"$f":"VLOOKUP(K88,System!$D$23:$F$27,3,TRUE)","v":5},1,5]
[null,null,null,null,null,null,null,null,null,null,0,{"$f":"VLOOKUP(K89,System!$D$23:$F$27,3,TRUE)","v":5},1,5]
[null,null,null,null,null,null,null,null,null,null,0,{"$f":"VLOOKUP(K90,System!$D$23:$F$27,3,TRUE)","v":5},1,5]
[null,null,null,null,null,null,null,null,null,null,0,{"$f":"VLOOKUP(K91,System!$D$23:$F$27,3,TRUE)","v":5},1,5]
[null,null,null,null,null,null,null,null,null,null,0,{"$f":"VLOOKUP(K92,System!$D$23:$F$27,3,TRUE)","v":5},1,5]
[null,null,null,null,null,null,null,null,null,null,0,{"$f":"VLOOKUP(K93,System!$D$23:$F$27,3,TRUE)","v":5},1,5]
[null,null,null,null,null,null,null,null,null,null,0,{"$f":"VLOOKUP(K94,System!$D$23:$F$27,3,TRUE)","v":5},1,5]
[null,null,null,null,null,null,null,null,null,null,0,{"$f":"VLOOKUP(K95,System!$D$23:$F$27,3,TRUE)","v":5},1,5]
[null,null,null,null,null,null,null,null,null,null,0,{"$f":"VLOOKUP(K96,System!$D$23:$F$27,3,TRUE)","v":5},1,5]
[null,null,null,null,null,null,null,null,null,null,0,{"$f":"VLOOKUP(K97,System!$D$23:$F$27,3,TRUE)","v":5},1,5]
[null,null,null,null,null,null,null,null,null,null,0,{"$f":"VLOOKUP(K98,System!$D$23:$F$27,3,TRUE)","v":5},1,5]
[null,null,null,null,null,null,null,null,null,null,0,{"$f":"VLOOKUP(K99,System!$D$23:$F$27,3,TRUE)","v":5},1,5]
[null,null,null,null,null,null,null,null,null,null,0,{"$f":"VLOOKUP(K100,System!$D$23:$F$27,3,TRUE)","v":5},1,5]
[null,null,null,null,null,null,null,null,null,null,0,{"$f":"VLOOKUP(K101,System!$D$23:$F$27,3,TRUE)","v":5},1,5]
[null,null,null,null,null,null,null,null,null,null,0,{"$f":"VLOOKUP(K102,System!$D$23:$F$27,3,TRUE)","v":5},1,5]
[null,null,null,null,null,null,null,null,null,null,0,{"$f":"VLOOKUP(K103,System!$D$23:$F$27,3,TRUE)","v":5},1,5]
[null,null,null,null,null,null,null,null,null,null,0,{"$f":"VLOOKUP(K104,System!$D$23:$F$27,3,TRUE)","v":5},1,5]
[null,null,null,null,null,null,null,null,null,null,0,{"$f":"VLOOKUP(K105,System!$D$23:$F$27,3,TRUE)","v":5},1,5]
[null,null,null,null,null,null,null,null,null,null,0,{"$f":"VLOOKUP(K106,System!$D$23:$F$27,3,TRUE)","v":5},1,5]
[null,null,null,null,null,null,null,null,null,null,0,{"$f":"VLOOKUP(K107,System!$D$23:$F$27,3,TRUE)","v":5},1,5]
[null,null,null,null,null,null,null,null,null,null,0,{"$f":"VLOOKUP(K108,System!$D$23:$F$27,3,TRUE)","v":5},1,5]
[null,null,null,null,null,null,null,null,null,null,0,{"$f":"VLOOKUP(K109,System!$D$23:$F$27,3,TRUE)","v":5},1,5]
[null,null,null,null,null,null,null,null,null,null,0,{"$f":"VLOOKUP(K110,System!$D$23:$F$27,3,TRUE)","v":5},1,5]
[null,null,null,null,null,null,null,null,null,null,0,{"$f":"VLOOKUP(K111,System!$D$23:$F$27,3,TRUE)","v":5},1,5]
[null,null,null,null,null,null,null,null,null,null,0,{"$f":"VLOOKUP(K112,System!$D$23:$F$27,3,TRUE)","v":5},1,5]
[null,null,null,null,null,null,null,null,null,null,0,{"$f":"VLOOKUP(K113,System!$D$23:$F$27,3,TRUE)","v":5},1,5]
[null,null,null,null,null,null,null,null,null,null,0,{"$f":"VLOOKUP(K114,System!$D$23:$F$27,3,TRUE)","v":5},1,5]
[null,null,null,null,null,null,null,null,null,null,0,{"$f":"VLOOKUP(K115,System!$D$23:$F$27,3,TRUE)","v":5},1,5]
[null,null,null,null,null,null,null,null,null,null,0,{"$f":"VLOOKUP(K116,System!$D$23:$F$27,3,TRUE)","v":5},1,5]
[null,null,null,null,null,null,null,null,null,null,0,{"$f":"VLOOKUP(K117,System!$D$23:$F$27,3,TRUE)","v":5},1,5]
[null,null,null,null,null,null,null,null,null,null,0,{"$f":"VLOOKUP(K118,System!$D$23:$F$27,3,TRUE)","v":5},1,5]
[null,null,null,null,null,null,null,null,null,null,0,{"$f":"VLOOKUP(K119,System!$D$23:$F$27,3,TRUE)","v":5},1,5]
[null,null,null,null,null,null,null,null,null,null,0,{"$f":"VLOOKUP(K120,System!$D$23:$F$27,3,TRUE)","v":5},1,5]
[null,null,null,null,null,null,null,null,null,null,0,{"$f":"VLOOKUP(K121,System!$D$23:$F$27,3,TRUE)","v":5},1,5]
[null,null,null,null,null,null,null,null,null,null,0,{"$f":"VLOOKUP(K122,System!$D$23:$F$27,3,TRUE)","v":5},1,5]
[null,null,null,null,null,null,null,null,null,null,0,{"$f":"VLOOKUP(K123,System!$D$23:$F$27,3,TRUE)","v":5},1,5]
[null,null,null,null,null,null,null,null,null,null,0,{"$f":"VLOOKUP(K124,System!$D$23:$F$27,3,TRUE)","v":5},1,5]
[null,null,null,null,null,null,null,null,null,null,0,{"$f":"VLOOKUP(K125,System!$D$23:$F$27,3,TRUE)","v":5},1,5]
[null,null,null,null,null,null,null,null,null,null,0,{"$f":"VLOOKUP(K126,System!$D$23:$F$27,3,TRUE)","v":5},1,5]
[null,null,null,null,null,null,null,null,null,null,0,{"$f":"VLOOKUP(K127,System!$D$23:$F$27,3,TRUE)","v":5},1,5]
[null,null,null,null,null,null,null,null,null,null,0,{"$f":"VLOOKUP(K128,System!$D$23:$F$27,3,TRUE)","v":5},1,5]
[null,null,null,null,null,null,null,null,null,null,0,{"$f":"VLOOKUP(K129,System!$D$23:$F$27,3,TRUE)","v":5},1,5]
[null,null,null,null,null,null,null,null,null,null,0,{"$f":"VLOOKUP(K130,System!$D$23:$F$27,3,TRUE)","v":5},1,5]
[null,null,null,null,null,null,null,null,null,null,0,{"$f":"VLOOKUP(K131,System!$D$23:$F$27,3,TRUE)","v":5},1,5]
[null,null,null,null,null,null,null,null,null,null,0,{"$f":"VLOOKUP(K132,System!$D$23:$F$27,3,TRUE)","v":5},1,5]
[null,null,null,null,null,null,null,null,null,null,0,{"$f":"VLOOKUP(K133,System!$D$23:$F$27,3,TRUE)","v":5},1,5]
[null,null,null,null,null,null,null,null,null,null,0,{"$f":"VLOOKUP(K134,System!$D$23:$F$27,3,TRUE)","v":5},1,5]
[null,null,null,null,null,null,null,null,null,null,0,{"$f":"VLOOKUP(K135,System!$D$23:$F$27,3,TRUE)","v":5},1,5]
[null,null,null,null,null,null,null,null,null,null,0,{"$f":"VLOOKUP(K136,System!$D$23:$F$27,3,TRUE)","v":5},1,5]
[null,null,null,null,null,null,null,null,null,null,{"$f":"SUM(F137:J137)","v":0},{"$f":"VLOOKUP(K137,System!$D$23:$F$27,3,TRUE)","v":5},1,{"$f":"L137*M137","v":5}]
[null,null,null,null,null,null,null,null,null,null,0,{"$f":"VLOOKUP(K138,System!$D$23:$F$27,3,TRUE)","v":5},1,5]
[null,null,null,null,null,null,null,null,null,null,0,{"$f":"VLOOKUP(K139,System!$D$23:$F$27,3,TRUE)","v":5},1,5]
[null,null,null,null,null,null,null,null,null,null,0,{"$f":"VLOOKUP(K140,System!$D$23:$F$27,3,TRUE)","v":5},1,5]
[null,null,null,null,null,null,null,null,null,null,0,{"$f":"VLOOKUP(K141,System!$D$23:$F$27,3,TRUE)","v":5},1,5]
[null,null,null,null,null,null,null,null,null,null,0,{"$f":"VLOOKUP(K142,System!$D$23:$F$27,3,TRUE)","v":5},1,5]
[null,null,null,null,null,null,null,null,null,null,0,{"$f":"VLOOKUP(K143,System!$D$23:$F$27,3,TRUE)","v":5},1,5]
[null,null,null,null,null,null,null,null,null,null,0,{"$f":"VLOOKUP(K144,System!$D$23:$F$27,3,TRUE)","v":5},1,5]
[null,null,null,null,null,null,null,null,null,null,0,{"$f":"VLOOKUP(K145,System!$D$23:$F$27,3,TRUE)","v":5},1,5]
[null,null,null,null,null,null,null,null,null,null,0,{"$f":"VLOOKUP(K146,System!$D$23:$F$27,3,TRUE)","v":5},1,5]
[null,null,null,null,null,null,null,null,null,null,0,{"$f":"VLOOKUP(K147,System!$D$23:$F$27,3,TRUE)","v":5},1,5]
[null,null,null,null,null,null,null,null,null,null,0,{"$f":"VLOOKUP(K148,System!$D$23:$F$27,3,TRUE)","v":5},1,5]
[null,null,null,null,null,null,null,null,null,null,0,{"$f":"VLOOKUP(K149,System!$D$23:$F$27,3,TRUE)","v":5},1,5]
[null,null,null,null,null,null,null,null,null,null,0,{"$f":"VLOOKUP(K150,System!$D$23:$F$27,3,TRUE)","v":5},1,5]
[null,null,null,null,null,null,null,null,null,null,0,{"$f":"VLOOKUP(K151,System!$D$23:$F$27,3,TRUE)","v":5},1,5]
[null,null,null,null,null,null,null,null,null,null,0,{"$f":"VLOOKUP(K152,System!$D$23:$F$27,3,TRUE)","v":5},1,5]
[null,null,null,null,null,null,null,null,null,null,0,{"$f":"VLOOKUP(K153,System!$D$23:$F$27,3,TRUE)","v":5},1,5]
[null,null,null,null,null,null,null,null,null,null,0,{"$f":"VLOOKUP(K154,System!$D$23:$F$27,3,TRUE)","v":5},1,5]
[null,null,null,null,null,null,null,null,null,null,0,{"$f":"VLOOKUP(K155,System!$D$23:$F$27,3,TRUE)","v":5},1,5]
[null,null,null,null,null,null,null,null,null,null,0,{"$f":"VLOOKUP(K156,System!$D$23:$F$27,3,TRUE)","v":5},1,5]
[null,null,null,null,null,null,null,null,null,null,0,{"$f":"VLOOKUP(K157,System!$D$23:$F$27,3,TRUE)","v":5},1,5]
[null,null,null,null,null,null,null,null,null,null,0,{"$f":"VLOOKUP(K158,System!$D$23:$F$27,3,TRUE)","v":5},1,5]
[null,null,null,null,null,null,null,null,null,null,0,{"$f":"VLOOKUP(K159,System!$D$23:$F$27,3,TRUE)","v":5},1,5]
[null,null,null,null,null,null,null,null,null,null,0,{"$f":"VLOOKUP(K160,System!$D$23:$F$27,3,TRUE)","v":5},1,5]
[null,null,null,null,null,null,null,null,null,null,0,{"$f":"VLOOKUP(K161,System!$D$23:$F$27,3,TRUE)","v":5},1,5]
[null,null,null,null,null,null,null,null,null,null,0,{"$f":"VLOOKUP(K162,System!$D$23:$F$27,3,TRUE)","v":5},1,5]
[null,null,null,null,null,null,null,null,null,null,0,{"$f":"VLOOKUP(K163,System!$D$23:$F$27,3,TRUE)","v":5},1,5]
[null,null,null,null,null,null,null,null,null,null,0,{"$f":"VLOOKUP(K164,System!$D$23:$F$27,3,TRUE)","v":5},1,5]
[null,null,null,null,null,null,null,null,null,null,0,{"$f":"VLOOKUP(K165,System!$D$23:$F$27,3,TRUE)","v":5},1,5]
[null,null,null,null,null,null,null,null,null,null,0,{"$f":"VLOOKUP(K166,System!$D$23:$F$27,3,TRUE)","v":5},1,5]
[null,null,null,null,null,null,null,null,null,null,0,{"$f":"VLOOKUP(K167,System!$D$23:$F$27,3,TRUE)","v":5},1,5]
[null,null,null,null,null,null,null,null,null,null,0,{"$f":"VLOOKUP(K168,System!$D$23:$F$27,3,TRUE)","v":5},1,5]
[null,null,null,null,null,null,null,null,null,null,0,{"$f":"VLOOKUP(K169,System!$D$23:$F$27,3,TRUE)","v":5},1,5]
[null,null,null,null,null,null,null,null,null,null,0,{"$f":"VLOOKUP(K170,System!$D$23:$F$27,3,TRUE)","v":5},1,5]
[null,null,null,null,null,null,null,null,null,null,0,{"$f":"VLOOKUP(K171,System!$D$23:$F$27,3,TRUE)","v":5},1,5]
[null,null,null,null,null,null,null,null,null,null,0,{"$f":"VLOOKUP(K172,System!$D$23:$F$27,3,TRUE)","v":5},1,5]
[null,null,null,null,null,null,null,null,null,null,0,{"$f":"VLOOKUP(K173,System!$D$23:$F$27,3,TRUE)","v":5},1,5]
[null,null,null,null,null,null,null,null,null,null,0,{"$f":"VLOOKUP(K174,System!$D$23:$F$27,3,TRUE)","v":5},1,5]
[null,null,null,null,null,null,null,null,null,null,0,{"$f":"VLOOKUP(K175,System!$D$23:$F$27,3,TRUE)","v":5},1,5]
[null,null,null,null,null,null,null,null,null,null,0,{"$f":"VLOOKUP(K176,System!$D$23:$F$27,3,TRUE)","v":5},1,5]
[null,null,null,null,null,null,null,null,null,null,0,{"$f":"VLOOKUP(K177,System!$D$23:$F$27,3,TRUE)","v":5},1,5]
[null,null,null,null,null,null,null,null,null,null,0,{"$f":"VLOOKUP(K178,System!$D$23:$F$27,3,TRUE)","v":5},1,5]
[null,null,null,null,null,null,null,null,null,null,0,{"$f":"VLOOKUP(K179,System!$D$23:$F$27,3,TRUE)","v":5},1,5]
[null,null,null,null,null,null,null,null,null,null,0,{"$f":"VLOOKUP(K180,System!$D$23:$F$27,3,TRUE)","v":5},1,5]
[null,null,null,null,null,null,null,null,null,null,0,{"$f":"VLOOKUP(K181,System!$D$23:$F$27,3,TRUE)","v":5},1,5]
[null,null,null,null,null,null,null,null,null,null,0,{"$f":"VLOOKUP(K182,System!$D$23:$F$27,3,TRUE)","v":5},1,5]
[null,null,null,null,null,null,null,null,null,null,0,{"$f":"VLOOKUP(K183,System!$D$23:$F$27,3,TRUE)","v":5},1,5]
[null,null,null,null,null,null,null,null,null,null,0,{"$f":"VLOOKUP(K184,System!$D$23:$F$27,3,TRUE)","v":5},1,5]
[null,null,null,null,null,null,null,null,null,null,0,{"$f":"VLOOKUP(K185,System!$D$23:$F$27,3,TRUE)","v":5},1,5]
[null,null,null,null,null,null,null,null,null,null,0,{"$f":"VLOOKUP(K186,System!$D$23:$F$27,3,TRUE)","v":5},1,5]
[null,null,null,null,null,null,null,null,null,null,0,{"$f":"VLOOKUP(K187,System!$D$23:$F$27,3,TRUE)","v":5},1,5]
[null,null,null,null,null,null,null,null,null,null,0,{"$f":"VLOOKUP(K188,System!$D$23:$F$27,3,TRUE)","v":5},1,5]
[null,null,null,null,null,null,null,null,null,null,0,{"$f":"VLOOKUP(K189,System!$D$23:$F$27,3,TRUE)","v":5},1,5]
[null,null,null,null,null,null,null,null,null,null,0,{"$f":"VLOOKUP(K190,System!$D$23:$F$27,3,TRUE)","v":5},1,5]
[null,null,null,null,null,null,null,null,null,null,0,{"$f":"VLOOKUP(K191,System!$D$23:$F$27,3,TRUE)","v":5},1,5]
[null,null,null,null,null,null,null,null,null,null,0,{"$f":"VLOOKUP(K192,System!$D$23:$F$27,3,TRUE)","v":5},1,5]
[null,null,null,null,null,null,null,null,null,null,0,{"$f":"VLOOKUP(K193,System!$D$23:$F$27,3,TRUE)","v":5},1,5]
[null,null,null,null,null,null,null,null,null,null,0,{"$f":"VLOOKUP(K194,System!$D$23:$F$27,3,TRUE)","v":5},1,5]
[null,null,null,null,null,null,null,null,null,null,0,{"$f":"VLOOKUP(K195,System!$D$23:$F$27,3,TRUE)","v":5},1,5]
[null,null,null,null,null,null,null,null,null,null,0,{"$f":"VLOOKUP(K196,System!$D$23:$F$27,3,TRUE)","v":5},1,5]
[null,null,null,null,null,null,null,null,null,null,0,{"$f":"VLOOKUP(K197,System!$D$23:$F$27,3,TRUE)","v":5},1,5]
[null,null,null,null,null,null,null,null,null,null,0,{"$f":"VLOOKUP(K198,System!$D$23:$F$27,3,TRUE)","v":5},1,5]
[null,null,null,null,null,null,null,null,null,null,0,{"$f":"VLOOKUP(K199,System!$D$23:$F$27,3,TRUE)","v":5},1,5]
[null,null,null,null,null,null,null,null,null,null,0,{"$f":"VLOOKUP(K200,System!$D$23:$F$27,3,TRUE)","v":5},1,5]
[null,null,null,null,null,null,null,null,null,null,{"$f":"SUM(F201:J201)","v":0},{"$f":"VLOOKUP(K201,System!$D$23:$F$27,3,TRUE)","v":5},1,{"$f":"L201*M201","v":5}]
[null,null,null,null,null,null,null,null,null,null,0,{"$f":"VLOOKUP(K202,System!$D$23:$F$27,3,TRUE)","v":5},1,5]
[null,null,null,null,null,null,null,null,null,null,0,{"$f":"VLOOKUP(K203,System!$D$23:$F$27,3,TRUE)","v":5},1,5]
[null,null,null,null,null,null,null,null,null,null,0,{"$f":"VLOOKUP(K204,System!$D$23:$F$27,3,TRUE)","v":5},1,5]
[null,null,null,null,null,null,null,null,null,null,0,{"$f":"VLOOKUP(K205,System!$D$23:$F$27,3,TRUE)","v":5},1,5]
[null,null,null,null,null,null,null,null,null,null,0,{"$f":"VLOOKUP(K206,System!$D$23:$F$27,3,TRUE)","v":5},1,5]
[null,null,null,null,null,null,null,null,null,null,0,{"$f":"VLOOKUP(K207,System!$D$23:$F$27,3,TRUE)","v":5},1,5]
[null,null,null,null,null,null,null,null,null,null,0,{"$f":"VLOOKUP(K208,System!$D$23:$F$27,3,TRUE)","v":5},1,5]
[null,null,null,null,null,null,null,null,null,null,0,{"$f":"VLOOKUP(K209,System!$D$23:$F$27,3,TRUE)","v":5},1,5]
[null,null,null,null,null,null,null,null,null,null,0,{"$f":"VLOOKUP(K210,System!$D$23:$F$27,3,TRUE)","v":5},1,5]
[null,null,null,null,null,null,null,null,null,null,0,{"$f":"VLOOKUP(K211,System!$D$23:$F$27,3,TRUE)","v":5},1,5]
[null,null,null,null,null,null,null,null,null,null,0,{"$f":"VLOOKUP(K212,System!$D$23:$F$27,3,TRUE)","v":5},1,5]
[null,null,null,null,null,null,null,null,null,null,0,{"$f":"VLOOKUP(K213,System!$D$23:$F$27,3,TRUE)","v":5},1,5]
[null,null,null,null,null,null,null,null,null,null,0,{"$f":"VLOOKUP(K214,System!$D$23:$F$27,3,TRUE)","v":5},1,5]
[null,null,null,null,null,null,null,null,null,null,0,{"$f":"VLOOKUP(K215,System!$D$23:$F$27,3,TRUE)","v":5},1,5]
[null,null,null,null,null,null,null,null,null,null,0,{"$f":"VLOOKUP(K216,System!$D$23:$F$27,3,TRUE)","v":5},1,5]
[null,null,null,null,null,null,null,null,null,null,0,{"$f":"VLOOKUP(K217,System!$D$23:$F$27,3,TRUE)","v":5},1,5]
[null,null,null,null,null,null,null,null,null,null,0,{"$f":"VLOOKUP(K218,System!$D$23:$F$27,3,TRUE)","v":5},1,5]
[null,null,null,null,null,null,null,null,null,null,0,{"$f":"VLOOKUP(K219,System!$D$23:$F$27,3,TRUE)","v":5},1,5]
[null,null,null,null,null,null,null,null,null,null,0,{"$f":"VLOOKUP(K220,System!$D$23:$F$27,3,TRUE)","v":5},1,5]
[null,null,null,null,null,null,null,null,null,null,0,{"$f":"VLOOKUP(K221,System!$D$23:$F$27,3,TRUE)","v":5},1,5]
[null,null,null,null,null,null,null,null,null,null,0,{"$f":"VLOOKUP(K222,System!$D$23:$F$27,3,TRUE)","v":5},1,5]
[null,null,null,null,null,null,null,null,null,null,0,{"$f":"VLOOKUP(K223,System!$D$23:$F$27,3,TRUE)","v":5},1,5]
[null,null,null,null,null,null,null,null,null,null,0,{"$f":"VLOOKUP(K224,System!$D$23:$F$27,3,TRUE)","v":5},1,5]
[null,null,null,null,null,null,null,null,null,null,0,{"$f":"VLOOKUP(K225,System!$D$23:$F$27,3,TRUE)","v":5},1,5]
[null,null,null,null,null,null,null,null,null,null,0,{"$f":"VLOOKUP(K226,System!$D$23:$F$27,3,TRUE)","v":5},1,5]
[null,null,null,null,null,null,null,null,null,null,0,{"$f":"VLOOKUP(K227,System!$D$23:$F$27,3,TRUE)","v":5},1,5]
[null,null,null,null,null,null,null,null,null,null,0,{"$f":"VLOOKUP(K228,System!$D$23:$F$27,3,TRUE)","v":5},1,5]
[null,null,null,null,null,null,null,null,null,null,0,{"$f":"VLOOKUP(K229,System!$D$23:$F$27,3,TRUE)","v":5},1,5]
[null,null,null,null,null,null,null,null,null,null,0,{"$f":"VLOOKUP(K230,System!$D$23:$F$27,3,TRUE)","v":5},1,5]
[null,null,null,null,null,null,null,null,null,null,0,{"$f":"VLOOKUP(K231,System!$D$23:$F$27,3,TRUE)","v":5},1,5]
[null,null,null,null,null,null,null,null,null,null,0,{"$f":"VLOOKUP(K232,System!$D$23:$F$27,3,TRUE)","v":5},1,5]
[null,null,null,null,null,null,null,null,null,null,0,{"$f":"VLOOKUP(K233,System!$D$23:$F$27,3,TRUE)","v":5},1,5]
[null,null,null,null,null,null,null,null,null,null,0,{"$f":"VLOOKUP(K234,System!$D$23:$F$27,3,TRUE)","v":5},1,5]
[null,null,null,null,null,null,null,null,null,null,0,{"$f":"VLOOKUP(K235,System!$D$23:$F$27,3,TRUE)","v":5},1,5]
[null,null,null,null,null,null,null,null,null,null,0,{"$f":"VLOOKUP(K236,System!$D$23:$F$27,3,TRUE)","v":5},1,5]
[null,null,null,null,null,null,null,null,null,null,0,{"$f":"VLOOKUP(K237,System!$D$23:$F$27,3,TRUE)","v":5},1,5]
[null,null,null,null,null,null,null,null,null,null,0,{"$f":"VLOOKUP(K238,System!$D$23:$F$27,3,TRUE)","v":5},1,5]
[null,null,null,null,null,null,null,null,null,null,0,{"$f":"VLOOKUP(K239,System!$D$23:$F$27,3,TRUE)","v":5},1,5]
[null,null,null,null,null,null,null,null,null,null,0,{"$f":"VLOOKUP(K240,System!$D$23:$F$27,3,TRUE)","v":5},1,5]
[null,null,null,null,null,null,null,null,null,null,0,{"$f":"VLOOKUP(K241,System!$D$23:$F$27,3,TRUE)","v":5},1,5]
[null,null,null,null,null,null,null,null,null,null,0,{"$f":"VLOOKUP(K242,System!$D$23:$F$27,3,TRUE)","v":5},1,5]
[null,null,null,null,null,null,null,null,null,null,0,{"$f":"VLOOKUP(K243,System!$D$23:$F$27,3,TRUE)","v":5},1,5]
[null,null,null,null,null,null,null,null,null,null,0,{"$f":"VLOOKUP(K244,System!$D$23:$F$27,3,TRUE)","v":5},1,5]
[null,null,null,null,null,null,null,null,null,null,0,{"$f":"VLOOKUP(K245,System!$D$23:$F$27,3,TRUE)","v":5},1,5]
[null,null,null,null,null,null,null,null,null,null,0,{"$f":"VLOOKUP(K246,System!$D$23:$F$27,3,TRUE)","v":5},1,5]
[null,null,null,null,null,null,null,null,null,null,0,{"$f":"VLOOKUP(K247,System!$D$23:$F$27,3,TRUE)","v":5},1,5]
[null,null,null,null,null,null,null,null,null,null,0,{"$f":"VLOOKUP(K248,System!$D$23:$F$27,3,TRUE)","v":5},1,5]
[null,null,null,null,null,null,null,null,null,null,0,{"$f":"VLOOKUP(K249,System!$D$23:$F$27,3,TRUE)","v":5},1,5]
[null,null,null,null,null,null,null,null,null,null,0,{"$f":"VLOOKUP(K250,System!$D$23:$F$27,3,TRUE)","v":5},1,5]
[null,null,null,null,null,null,null,null,null,null,0,{"$f":"VLOOKUP(K251,System!$D$23:$F$27,3,TRUE)","v":5},1,5]
[null,null,null,null,null,null,null,null,null,null,0,{"$f":"VLOOKUP(K252,System!$D$23:$F$27,3,TRUE)","v":5},1,5]
[null,null,null,null,null,null,null,null,null,null,0,{"$f":"VLOOKUP(K253,System!$D$23:$F$27,3,TRUE)","v":5},1,5]
[null,null,null,null,null,null,null,null,null,null,0,{"$f":"VLOOKUP(K254,System!$D$23:$F$27,3,TRUE)","v":5},1,5]
[null,null,null,null,null,null,null,null,null,null,0,{"$f":"VLOOKUP(K255,System!$D$23:$F$27,3,TRUE)","v":5},1,5]
[null,null,null,null,null,null,null,null,null,null,0,{"$f":"VLOOKUP(K256,System!$D$23:$F$27,3,TRUE)","v":5},1,5]
[null,null,null,null,null,null,null,null,null,null,0,{"$f":"VLOOKUP(K257,System!$D$23:$F$27,3,TRUE)","v":5},1,5]
[null,null,null,null,null,null,null,null,null,null,0,{"$f":"VLOOKUP(K258,System!$D$23:$F$27,3,TRUE)","v":5},1,5]
[null,null,null,null,null,null,null,null,null,null,0,{"$f":"VLOOKUP(K259,System!$D$23:$F$27,3,TRUE)","v":5},1,5]
[null,null,null,null,null,null,null,null,null,null,0,{"$f":"VLOOKUP(K260,System!$D$23:$F$27,3,TRUE)","v":5},1,5]
[null,null,null,null,null,null,null,null,null,null,0,{"$f":"VLOOKUP(K261,System!$D$23:$F$27,3,TRUE)","v":5},1,5]
[null,null,null,null,null,null,null,null,null,null,0,{"$f":"VLOOKUP(K262,System!$D$23:$F$27,3,TRUE)","v":5},1,5]
[null,null,null,null,null,null,null,null,null,null,0,{"$f":"VLOOKUP(K263,System!$D$23:$F$27,3,TRUE)","v":5},1,5]
[null,null,null,null,null,null,null,null,null,null,0,{"$f":"VLOOKUP(K264,System!$D$23:$F$27,3,TRUE)","v":5},1,5]
[null,null,null,null,null,null,null,null,null,null,{"$f":"SUM(F265:J265)","v":0},{"$f":"VLOOKUP(K265,System!$D$23:$F$27,3,TRUE)","v":5},1,{"$f":"L265*M265","v":5}]
[null,null,null,null,null,null,null,null,null,null,0,{"$f":"VLOOKUP(K266,System!$D$23:$F$27,3,TRUE)","v":5},1,5]
[null,null,null,null,null,null,null,null,null,null,0,{"$f":"VLOOKUP(K267,System!$D$23:$F$27,3,TRUE)","v":5},1,5]
[null,null,null,null,null,null,null,null,null,null,0,{"$f":"VLOOKUP(K268,System!$D$23:$F$27,3,TRUE)","v":5},1,5]
[null,null,null,null,null,null,null,null,null,null,0,{"$f":"VLOOKUP(K269,System!$D$23:$F$27,3,TRUE)","v":5},1,5]
[null,null,null,null,null,null,null,null,null,null,0,{"$f":"VLOOKUP(K270,System!$D$23:$F$27,3,TRUE)","v":5},1,5]
[null,null,null,null,null,null,null,null,null,null,0,{"$f":"VLOOKUP(K271,System!$D$23:$F$27,3,TRUE)","v":5},1,5]
[null,null,null,null,null,null,null,null,null,null,0,{"$f":"VLOOKUP(K272,System!$D$23:$F$27,3,TRUE)","v":5},1,5]
[null,null,null,null,null,null,null,null,null,null,0,{"$f":"VLOOKUP(K273,System!$D$23:$F$27,3,TRUE)","v":5},1,5]
[null,null,null,null,null,null,null,null,null,null,0,{"$f":"VLOOKUP(K274,System!$D$23:$F$27,3,TRUE)","v":5},1,5]
[null,null,null,null,null,null,null,null,null,null,0,{"$f":"VLOOKUP(K275,System!$D$23:$F$27,3,TRUE)","v":5},1,5]
[null,null,null,null,null,null,null,null,null,null,0,{"$f":"VLOOKUP(K276,System!$D$23:$F$27,3,TRUE)","v":5},1,5]
[null,null,null,null,null,null,null,null,null,null,0,{"$f":"VLOOKUP(K277,System!$D$23:$F$27,3,TRUE)","v":5},1,5]
[null,null,null,null,null,null,null,null,null,null,0,{"$f":"VLOOKUP(K278,System!$D$23:$F$27,3,TRUE)","v":5},1,5]
[null,null,null,null,null,null,null,null,null,null,0,{"$f":"VLOOKUP(K279,System!$D$23:$F$27,3,TRUE)","v":5},1,5]
[null,null,null,null,null,null,null,null,null,null,0,{"$f":"VLOOKUP(K280,System!$D$23:$F$27,3,TRUE)","v":5},1,5]
[null,null,null,null,null,null,null,null,null,null,0,{"$f":"VLOOKUP(K281,System!$D$23:$F$27,3,TRUE)","v":5},1,5]
[null,null,null,null,null,null,null,null,null,null,0,{"$f":"VLOOKUP(K282,System!$D$23:$F$27,3,TRUE)","v":5},1,5]
[null,null,null,null,null,null,null,null,null,null,0,{"$f":"VLOOKUP(K283,System!$D$23:$F$27,3,TRUE)","v":5},1,5]
[null,null,null,null,null,null,null,null,null,null,0,{"$f":"VLOOKUP(K284,System!$D$23:$F$27,3,TRUE)","v":5},1,5]
[null,null,null,null,null,null,null,null,null,null,0,{"$f":"VLOOKUP(K285,System!$D$23:$F$27,3,TRUE)","v":5},1,5]
[null,null,null,null,null,null,null,null,null,null,0,{"$f":"VLOOKUP(K286,System!$D$23:$F$27,3,TRUE)","v":5},1,5]
[null,null,null,null,null,null,null,null,null,null,0,{"$f":"VLOOKUP(K287,System!$D$23:$F$27,3,TRUE)","v":5},1,5]
[null,null,null,null,null,null,null,null,null,null,0,{"$f":"VLOOKUP(K288,System!$D$23:$F$27,3,TRUE)","v":5},1,5]
[null,null,null,null,null,null,null,null,null,null,0,{"$f":"VLOOKUP(K289,System!$D$23:$F$27,3,TRUE)","v":5},1,5]
[null,null,null,null,null,null,null,null,null,null,0,{"$f":"VLOOKUP(K290,System!$D$23:$F$27,3,TRUE)","v":5},1,5]
[null,null,null,null,null,null,null,null,null,null,0,{"$f":"VLOOKUP(K291,System!$D$23:$F$27,3,TRUE)","v":5},1,5]
[null,null,null,null,null,null,null,null,null,null,0,{"$f":"VLOOKUP(K292,System!$D$23:$F$27,3,TRUE)","v":5},1,5]
[null,null,null,null,null,null,null,null,null,null,0,{"$f":"VLOOKUP(K293,System!$D$23:$F$27,3,TRUE)","v":5},1,5]
[null,null,null,null,null,null,null,null,null,null,0,{"$f":"VLOOKUP(K294,System!$D$23:$F$27,3,TRUE)","v":5},1,5]
[null,null,null,null,null,null,null,null,null,null,0,{"$f":"VLOOKUP(K295,System!$D$23:$F$27,3,TRUE)","v":5},1,5]
[null,null,null,null,null,null,null,null,null,null,0,{"$f":"VLOOKUP(K296,System!$D$23:$F$27,3,TRUE)","v":5},1,5]
[null,null,null,null,null,null,null,null,null,null,0,{"$f":"VLOOKUP(K297,System!$D$23:$F$27,3,TRUE)","v":5},1,5]
[null,null,null,null,null,null,null,null,null,null,0,{"$f":"VLOOKUP(K298,System!$D$23:$F$27,3,TRUE)","v":5},1,5]
[null,null,null,null,null,null,null,null,null,null,0,{"$f":"VLOOKUP(K299,System!$D$23:$F$27,3,TRUE)","v":5},1,5]
[null,null,null,null,null,null,null,null,null,null,0,{"$f":"VLOOKUP(K300,System!$D$23:$F$27,3,TRUE)","v":5},1,5]
[null,null,null,null,null,null,null,null,null,null,0,{"$f":"VLOOKUP(K301,System!$D$23:$F$27,3,TRUE)","v":5},1,5]
[null,null,null,null,null,null,null,null,null,null,0,{"$f":"VLOOKUP(K302,System!$D$23:$F$27,3,TRUE)","v":5},1,5]
[null,null,null,null,null,null,null,null,null,null,0,{"$f":"VLOOKUP(K303,System!$D$23:$F$27,3,TRUE)","v":5},1,5]
[null,null,null,null,null,null,null,null,null,null,0,{"$f":"VLOOKUP(K304,System!$D$23:$F$27,3,TRUE)","v":5},1,5]
[null,null,null,null,null,null,null,null,null,null,0,{"$f":"VLOOKUP(K305,System!$D$23:$F$27,3,TRUE)","v":5},1,5]
[null,null,null,null,null,null,null,null,null,null,0,{"$f":"VLOOKUP(K306,System!$D$23:$F$27,3,TRUE)","v":5},1,5]
[null,null,null,null,null,null,null,null,null,null,0,{"$f":"VLOOKUP(K307,System!$D$23:$F$27,3,TRUE)","v":5},1,5]
[null,null,null,null,null,null,null,null,null,null,0,{"$f":"VLOOKUP(K308,System!$D$23:$F$27,3,TRUE)","v":5},1,5]
[null,null,null,null,null,null,null,null,null,null,0,{"$f":"VLOOKUP(K309,System!$D$23:$F$27,3,TRUE)","v":5},1,5]
[null,null,null,null,null,null,null,null,null,null,0,{"$f":"VLOOKUP(K310,System!$D$23:$F$27,3,TRUE)","v":5},1,5]
[null,null,null,null,null,null,null,null,null,null,0,{"$f":"VLOOKUP(K311,System!$D$23:$F$27,3,TRUE)","v":5},1,5]
[null,null,null,null,null,null,null,null,null,null,0,{"$f":"VLOOKUP(K312,System!$D$23:$F$27,3,TRUE)","v":5},1,5]
[null,null,null,null,null,null,null,null,null,null,0,{"$f":"VLOOKUP(K313,System!$D$23:$F$27,3,TRUE)","v":5},1,5]
[null,null,null,null,null,null,null,null,null,null,0,{"$f":"VLOOKUP(K314,System!$D$23:$F$27,3,TRUE)","v":5},1,5]
[null,null,null,null,null,null,null,null,null,null,0,{"$f":"VLOOKUP(K315,System!$D$23:$F$27,3,TRUE)","v":5},1,5]
[null,null,null,null,null,null,null,null,null,null,0,{"$f":"VLOOKUP(K316,System!$D$23:$F$27,3,TRUE)","v":5},1,5]
[null,null,null,null,null,null,null,null,null,null,0,{"$f":"VLOOKUP(K317,System!$D$23:$F$27,3,TRUE)","v":5},1,5]
[null,null,null,null,null,null,null,null,null,null,0,{"$f":"VLOOKUP(K318,System!$D$23:$F$27,3,TRUE)","v":5},1,5]
[null,null,null,null,null,null,null,null,null,null,0,{"$f":"VLOOKUP(K319,System!$D$23:$F$27,3,TRUE)","v":5},1,5]
[null,null,null,null,null,null,null,null,null,null,0,{"$f":"VLOOKUP(K320,System!$D$23:$F$27,3,TRUE)","v":5},1,5]
[null,null,null,null,null,null,null,null,null,null,0,{"$f":"VLOOKUP(K321,System!$D$23:$F$27,3,TRUE)","v":5},1,5]
[null,null,null,null,null,null,null,null,null,null,0,{"$f":"VLOOKUP(K322,System!$D$23:$F$27,3,TRUE)","v":5},1,5]
[null,null,null,null,null,null,null,null,null,null,0,{"$f":"VLOOKUP(K323,System!$D$23:$F$27,3,TRUE)","v":5},1,5]
[null,null,null,null,null,null,null,null,null,null,0,{"$f":"VLOOKUP(K324,System!$D$23:$F$27,3,TRUE)","v":5},1,5]
[null,null,null,null,null,null,null,null,null,null,0,{"$f":"VLOOKUP(K325,System!$D$23:$F$27,3,TRUE)","v":5},1,5]
[null,null,null,null,null,null,null,null,null,null,0,{"$f":"VLOOKUP(K326,System!$D$23:$F$27,3,TRUE)","v":5},1,5]
[null,null,null,null,null,null,null,null,null,null,0,{"$f":"VLOOKUP(K327,System!$D$23:$F$27,3,TRUE)","v":5},1,5]
[null,null,null,null,null,null,null,null,null,null,0,{"$f":"VLOOKUP(K328,System!$D$23:$F$27,3,TRUE)","v":5},1,5]
[null,null,null,null,null,null,null,null,null,null,{"$f":"SUM(F329:J329)","v":0},{"$f":"VLOOKUP(K329,System!$D$23:$F$27,3,TRUE)","v":5},1,{"$f":"L329*M329","v":5}]
[null,null,null,null,null,null,null,null,null,null,0,{"$f":"VLOOKUP(K330,System!$D$23:$F$27,3,TRUE)","v":5},1,5]
[null,null,null,null,null,null,null,null,null,null,0,{"$f":"VLOOKUP(K331,System!$D$23:$F$27,3,TRUE)","v":5},1,5]
[null,null,null,null,null,null,null,null,null,null,0,{"$f":"VLOOKUP(K332,System!$D$23:$F$27,3,TRUE)","v":5},1,5]
[null,null,null,null,null,null,null,null,null,null,0,{"$f":"VLOOKUP(K333,System!$D$23:$F$27,3,TRUE)","v":5},1,5]
[null,null,null,null,null,null,null,null,null,null,0,{"$f":"VLOOKUP(K334,System!$D$23:$F$27,3,TRUE)","v":5},1,5]
[null,null,null,null,null,null,null,null,null,null,0,{"$f":"VLOOKUP(K335,System!$D$23:$F$27,3,TRUE)","v":5},1,5]
[null,null,null,null,null,null,null,null,null,null,0,{"$f":"VLOOKUP(K336,System!$D$23:$F$27,3,TRUE)","v":5},1,5]
[null,null,null,null,null,null,null,null,null,null,0,{"$f":"VLOOKUP(K337,System!$D$23:$F$27,3,TRUE)","v":5},1,5]
[null,null,null,null,null,null,null,null,null,null,0,{"$f":"VLOOKUP(K338,System!$D$23:$F$27,3,TRUE)","v":5},1,5]
[null,null,null,null,null,null,null,null,null,null,0,{"$f":"VLOOKUP(K339,System!$D$23:$F$27,3,TRUE)","v":5},1,5]
[null,null,null,null,null,null,null,null,null,null,0,{"$f":"VLOOKUP(K340,System!$D$23:$F$27,3,TRUE)","v":5},1,5]
[null,null,null,null,null,null,null,null,null,null,0,{"$f":"VLOOKUP(K341,System!$D$23:$F$27,3,TRUE)","v":5},1,5]
[null,null,null,null,null,null,null,null,null,null,0,{"$f":"VLOOKUP(K342,System!$D$23:$F$27,3,TRUE)","v":5},1,5]
[null,null,null,null,null,null,null,null,null,null,0,{"$f":"VLOOKUP(K343,System!$D$23:$F$27,3,TRUE)","v":5},1,5]
[null,null,null,null,null,null,null,null,null,null,0,{"$f":"VLOOKUP(K344,System!$D$23:$F$27,3,TRUE)","v":5},1,5]
[null,null,null,null,null,null,null,null,null,null,0,{"$f":"VLOOKUP(K345,System!$D$23:$F$27,3,TRUE)","v":5},1,5]
[null,null,null,null,null,null,null,null,null,null,0,{"$f":"VLOOKUP(K346,System!$D$23:$F$27,3,TRUE)","v":5},1,5]
[null,null,null,null,null,null,null,null,null,null,0,{"$f":"VLOOKUP(K347,System!$D$23:$F$27,3,TRUE)","v":5},1,5]
[null,null,null,null,null,null,null,null,null,null,0,{"$f":"VLOOKUP(K348,System!$D$23:$F$27,3,TRUE)","v":5},1,5]
[null,null,null,null,null,null,null,null,null,null,0,{"$f":"VLOOKUP(K349,System!$D$23:$F$27,3,TRUE)","v":5},1,5]
[null,null,null,null,null,null,null,null,null,null,0,{"$f":"VLOOKUP(K350,System!$D$23:$F$27,3,TRUE)","v":5},1,5]
[null,null,null,null,null,null,null,null,null,null,0,{"$f":"VLOOKUP(K351,System!$D$23:$F$27,3,TRUE)","v":5},1,5]
[null,null,null,null,null,null,null,null,null,null,0,{"$f":"VLOOKUP(K352,System!$D$23:$F$27,3,TRUE)","v":5},1,5]
[null,null,null,null,null,null,null,null,null,null,0,{"$f":"VLOOKUP(K353,System!$D$23:$F$27,3,TRUE)","v":5},1,5]
[null,null,null,null,null,null,null,null,null,null,0,{"$f":"VLOOKUP(K354,System!$D$23:$F$27,3,TRUE)","v":5},1,5]
[null,null,null,null,null,null,null,null,null,null,0,{"$f":"VLOOKUP(K355,System!$D$23:$F$27,3,TRUE)","v":5},1,5]
[null,null,null,null,null,null,null,null,null,null,0,{"$f":"VLOOKUP(K356,System!$D$23:$F$27,3,TRUE)","v":5},1,5]
[null,null,null,null,null,null,null,null,null,null,0,{"$f":"VLOOKUP(K357,System!$D$23:$F$27,3,TRUE)","v":5},1,5]
[null,null,null,null,null,null,null,null,null,null,0,{"$f":"VLOOKUP(K358,System!$D$23:$F$27,3,TRUE)","v":5},1,5]
[null,null,null,null,null,null,null,null,null,null,0,{"$f":"VLOOKUP(K359,System!$D$23:$F$27,3,TRUE)","v":5},1,5]
[null,null,null,null,null,null,null,null,null,null,0,{"$f":"VLOOKUP(K360,System!$D$23:$F$27,3,TRUE)","v":5},1,5]
[null,null,null,null,null,null,null,null,null,null,0,{"$f":"VLOOKUP(K361,System!$D$23:$F$27,3,TRUE)","v":5},1,5]
[null,null,null,null,null,null,null,null,null,null,0,{"$f":"VLOOKUP(K362,System!$D$23:$F$27,3,TRUE)","v":5},1,5]
[null,null,null,null,null,null,null,null,null,null,0,{"$f":"VLOOKUP(K363,System!$D$23:$F$27,3,TRUE)","v":5},1,5]
[null,null,null,null,null,null,null,null,null,null,0,{"$f":"VLOOKUP(K364,System!$D$23:$F$27,3,TRUE)","v":5},1,5]
[null,null,null,null,null,null,null,null,null,null,0,{"$f":"VLOOKUP(K365,System!$D$23:$F$27,3,TRUE)","v":5},1,5]
[null,null,null,null,null,null,null,null,null,null,0,{"$f":"VLOOKUP(K366,System!$D$23:$F$27,3,TRUE)","v":5},1,5]
[null,null,null,null,null,null,null,null,null,null,0,{"$f":"VLOOKUP(K367,System!$D$23:$F$27,3,TRUE)","v":5},1,5]
[null,null,null,null,null,null,null,null,null,null,0,{"$f":"VLOOKUP(K368,System!$D$23:$F$27,3,TRUE)","v":5},1,5]
[null,null,null,null,null,null,null,null,null,null,0,{"$f":"VLOOKUP(K369,System!$D$23:$F$27,3,TRUE)","v":5},1,5]
[null,null,null,null,null,null,null,null,null,null,0,{"$f":"VLOOKUP(K370,System!$D$23:$F$27,3,TRUE)","v":5},1,5]
[null,null,null,null,null,null,null,null,null,null,0,{"$f":"VLOOKUP(K371,System!$D$23:$F$27,3,TRUE)","v":5},1,5]
[null,null,null,null,null,null,null,null,null,null,0,{"$f":"VLOOKUP(K372,System!$D$23:$F$27,3,TRUE)","v":5},1,5]
[null,null,null,null,null,null,null,null,null,null,0,{"$f":"VLOOKUP(K373,System!$D$23:$F$27,3,TRUE)","v":5},1,5]
[null,null,null,null,null,null,null,null,null,null,0,{"$f":"VLOOKUP(K374,System!$D$23:$F$27,3,TRUE)","v":5},1,5]
[null,null,null,null,null,null,null,null,null,null,0,{"$f":"VLOOKUP(K375,System!$D$23:$F$27,3,TRUE)","v":5},1,5]
[null,null,null,null,null,null,null,null,null,null,0,{"$f":"VLOOKUP(K376,System!$D$23:$F$27,3,TRUE)","v":5},1,5]
[null,null,null,null,null,null,null,null,null,null,0,{"$f":"VLOOKUP(K377,System!$D$23:$F$27,3,TRUE)","v":5},1,5]
[null,null,null,null,null,null,null,null,null,null,0,{"$f":"VLOOKUP(K378,System!$D$23:$F$27,3,TRUE)","v":5},1,5]
[null,null,null,null,null,null,null,null,null,null,0,{"$f":"VLOOKUP(K379,System!$D$23:$F$27,3,TRUE)","v":5},1,5]
[null,null,null,null,null,null,null,null,null,null,0,{"$f":"VLOOKUP(K380,System!$D$23:$F$27,3,TRUE)","v":5},1,5]
[null,null,null,null,null,null,null,null,null,null,0,{"$f":"VLOOKUP(K381,System!$D$23:$F$27,3,TRUE)","v":5},1,5]
[null,null,null,null,null,null,null,null,null,null,0,{"$f":"VLOOKUP(K382,System!$D$23:$F$27,3,TRUE)","v":5},1,5]
[null,null,null,null,null,null,null,null,null,null,0,{"$f":"VLOOKUP(K383,System!$D$23:$F$27,3,TRUE)","v":5},1,5]
[null,null,null,null,null,null,null,null,null,null,0,{"$f":"VLOOKUP(K384,System!$D$23:$F$27,3,TRUE)","v":5},1,5]
[null,null,null,null,null,null,null,null,null,null,0,{"$f":"VLOOKUP(K385,System!$D$23:$F$27,3,TRUE)","v":5},1,5]
[null,null,null,null,null,null,null,null,null,null,0,{"$f":"VLOOKUP(K386,System!$D$23:$F$27,3,TRUE)","v":5},1,5]
[null,null,null,null,null,null,null,null,null,null,0,{"$f":"VLOOKUP(K387,System!$D$23:$F$27,3,TRUE)","v":5},1,5]
[null,null,null,null,null,null,null,null,null,null,0,{"$f":"VLOOKUP(K388,System!$D$23:$F$27,3,TRUE)","v":5},1,5]
[null,null,null,null,null,null,null,null,null,null,0,{"$f":"VLOOKUP(K389,System!$D$23:$F$27,3,TRUE)","v":5},1,5]
[null,null,null,null,null,null,null,null,null,null,0,{"$f":"VLOOKUP(K390,System!$D$23:$F$27,3,TRUE)","v":5},1,5]
[null,null,null,null,null,null,null,null,null,null,0,{"$f":"VLOOKUP(K391,System!$D$23:$F$27,3,TRUE)","v":5},1,5]
[null,null,null,null,null,null,null,null,null,null,0,{"$f":"VLOOKUP(K392,System!$D$23:$F$27,3,TRUE)","v":5},1,5]
[null,null,null,null,null,null,null,null,null,null,{"$f":"SUM(F393:J393)","v":0},{"$f":"VLOOKUP(K393,System!$D$23:$F$27,3,TRUE)","v":5},1,{"$f":"L393*M393","v":5}]
[null,null,null,null,null,null,null,null,null,null,0,{"$f":"VLOOKUP(K394,System!$D$23:$F$27,3,TRUE)","v":5},1,5]
[null,null,null,null,null,null,null,null,null,null,0,{"$f":"VLOOKUP(K395,System!$D$23:$F$27,3,TRUE)","v":5},1,5]
[null,null,null,null,null,null,null,null,null,null,0,{"$f":"VLOOKUP(K396,System!$D$23:$F$27,3,TRUE)","v":5},1,5]
[null,null,null,null,null,null,null,null,null,null,0,{"$f":"VLOOKUP(K397,System!$D$23:$F$27,3,TRUE)","v":5},1,5]
[null,null,null,null,null,null,null,null,null,null,0,{"$f":"VLOOKUP(K398,System!$D$23:$F$27,3,TRUE)","v":5},1,5]
[null,null,null,null,null,null,null,null,null,null,0,{"$f":"VLOOKUP(K399,System!$D$23:$F$27,3,TRUE)","v":5},1,5]
[null,null,null,null,null,null,null,null,null,null,0,{"$f":"VLOOKUP(K400,System!$D$23:$F$27,3,TRUE)","v":5},1,5]
[null,null,null,null,null,null,null,null,null,null,0,{"$f":"VLOOKUP(K401,System!$D$23:$F$27,3,TRUE)","v":5},1,5]
[null,null,null,null,null,null,null,null,null,null,0,{"$f":"VLOOKUP(K402,System!$D$23:$F$27,3,TRUE)","v":5},1,5]
[null,null,null,null,null,null,null,null,null,null,0,{"$f":"VLOOKUP(K403,System!$D$23:$F$27,3,TRUE)","v":5},1,5]
[null,null,null,null,null,null,null,null,null,null,0,{"$f":"VLOOKUP(K404,System!$D$23:$F$27,3,TRUE)","v":5},1,5]
[null,null,null,null,null,null,null,null,null,null,0,{"$f":"VLOOKUP(K405,System!$D$23:$F$27,3,TRUE)","v":5},1,5]
[null,null,null,null,null,null,null,null,null,null,0,{"$f":"VLOOKUP(K406,System!$D$23:$F$27,3,TRUE)","v":5},1,5]
[null,null,null,null,null,null,null,null,null,null,0,{"$f":"VLOOKUP(K407,System!$D$23:$F$27,3,TRUE)","v":5},1,5]
[null,null,null,null,null,null,null,null,null,null,0,{"$f":"VLOOKUP(K408,System!$D$23:$F$27,3,TRUE)","v":5},1,5]
[null,null,null,null,null,null,null,null,null,null,0,{"$f":"VLOOKUP(K409,System!$D$23:$F$27,3,TRUE)","v":5},1,5]
[null,null,null,null,null,null,null,null,null,null,0,{"$f":"VLOOKUP(K410,System!$D$23:$F$27,3,TRUE)","v":5},1,5]
[null,null,null,null,null,null,null,null,null,null,0,{"$f":"VLOOKUP(K411,System!$D$23:$F$27,3,TRUE)","v":5},1,5]
[null,null,null,null,null,null,null,null,null,null,0,{"$f":"VLOOKUP(K412,System!$D$23:$F$27,3,TRUE)","v":5},1,5]
[null,null,null,null,null,null,null,null,null,null,0,{"$f":"VLOOKUP(K413,System!$D$23:$F$27,3,TRUE)","v":5},1,5]
[null,null,null,null,null,null,null,null,null,null,0,{"$f":"VLOOKUP(K414,System!$D$23:$F$27,3,TRUE)","v":5},1,5]
[null,null,null,null,null,null,null,null,null,null,0,{"$f":"VLOOKUP(K415,System!$D$23:$F$27,3,TRUE)","v":5},1,5]
[null,null,null,null,null,null,null,null,null,null,0,{"$f":"VLOOKUP(K416,System!$D$23:$F$27,3,TRUE)","v":5},1,5]
[null,null,null,null,null,null,null,null,null,null,0,{"$f":"VLOOKUP(K417,System!$D$23:$F$27,3,TRUE)","v":5},1,5]
[null,null,null,null,null,null,null,null,null,null,0,{"$f":"VLOOKUP(K418,System!$D$23:$F$27,3,TRUE)","v":5},1,5]
[null,null,null,null,null,null,null,null,null,null,0,{"$f":"VLOOKUP(K419,System!$D$23:$F$27,3,TRUE)","v":5},1,5]
[null,null,null,null,null,null,null,null,null,null,0,{"$f":"VLOOKUP(K420,System!$D$23:$F$27,3,TRUE)","v":5},1,5]
[null,null,null,null,null,null,null,null,null,null,0,{"$f":"VLOOKUP(K421,System!$D$23:$F$27,3,TRUE)","v":5},1,5]
[null,null,null,null,null,null,null,null,null,null,0,{"$f":"VLOOKUP(K422,System!$D$23:$F$27,3,TRUE)","v":5},1,5]
[null,null,null,null,null,null,null,null,null,null,0,{"$f":"VLOOKUP(K423,System!$D$23:$F$27,3,TRUE)","v":5},1,5]
[null,null,null,null,null,null,null,null,null,null,0,{"$f":"VLOOKUP(K424,System!$D$23:$F$27,3,TRUE)","v":5},1,5]
[null,null,null,null,null,null,null,null,null,null,0,{"$f":"VLOOKUP(K425,System!$D$23:$F$27,3,TRUE)","v":5},1,5]
[null,null,null,null,null,null,null,null,null,null,0,{"$f":"VLOOKUP(K426,System!$D$23:$F$27,3,TRUE)","v":5},1,5]
[null,null,null,null,null,null,null,null,null,null,0,{"$f":"VLOOKUP(K427,System!$D$23:$F$27,3,TRUE)","v":5},1,5]
[null,null,null,null,null,null,null,null,null,null,0,{"$f":"VLOOKUP(K428,System!$D$23:$F$27,3,TRUE)","v":5},1,5]
[null,null,null,null,null,null,null,null,null,null,0,{"$f":"VLOOKUP(K429,System!$D$23:$F$27,3,TRUE)","v":5},1,5]
[null,null,null,null,null,null,null,null,null,null,0,{"$f":"VLOOKUP(K430,System!$D$23:$F$27,3,TRUE)","v":5},1,5]
[null,null,null,null,null,null,null,null,null,null,0,{"$f":"VLOOKUP(K431,System!$D$23:$F$27,3,TRUE)","v":5},1,5]
[null,null,null,null,null,null,null,null,null,null,0,{"$f":"VLOOKUP(K432,System!$D$23:$F$27,3,TRUE)","v":5},1,5]
[null,null,null,null,null,null,null,null,null,null,0,{"$f":"VLOOKUP(K433,System!$D$23:$F$27,3,TRUE)","v":5},1,5]
[null,null,null,null,null,null,null,null,null,null,0,{"$f":"VLOOKUP(K434,System!$D$23:$F$27,3,TRUE)","v":5},1,5]
[null,null,null,null,null,null,null,null,null,null,0,{"$f":"VLOOKUP(K435,System!$D$23:$F$27,3,TRUE)","v":5},1,5]
[null,null,null,null,null,null,null,null,null,null,0,{"$f":"VLOOKUP(K436,System!$D$23:$F$27,3,TRUE)","v":5},1,5]
[null,null,null,null,null,null,null,null,null,null,0,{"$f":"VLOOKUP(K437,System!$D$23:$F$27,3,TRUE)","v":5},1,5]
[null,null,null,null,null,null,null,null,null,null,0,{"$f":"VLOOKUP(K438,System!$D$23:$F$27,3,TRUE)","v":5},1,5]
[null,null,null,null,null,null,null,null,null,null,0,{"$f":"VLOOKUP(K439,System!$D$23:$F$27,3,TRUE)","v":5},1,5]
[null,null,null,null,null,null,null,null,null,null,0,{"$f":"VLOOKUP(K440,System!$D$23:$F$27,3,TRUE)","v":5},1,5]
[null,null,null,null,null,null,null,null,null,null,0,{"$f":"VLOOKUP(K441,System!$D$23:$F$27,3,TRUE)","v":5},1,5]
[null,null,null,null,null,null,null,null,null,null,0,{"$f":"VLOOKUP(K442,System!$D$23:$F$27,3,TRUE)","v":5},1,5]
[null,null,null,null,null,null,null,null,null,null,0,{"$f":"VLOOKUP(K443,System!$D$23:$F$27,3,TRUE)","v":5},1,5]
[null,null,null,null,null,null,null,null,null,null,0,{"$f":"VLOOKUP(K444,System!$D$23:$F$27,3,TRUE)","v":5},1,5]
[null,null,null,null,null,null,null,null,null,null,0,{"$f":"VLOOKUP(K445,System!$D$23:$F$27,3,TRUE)","v":5},1,5]
[null,null,null,null,null,null,null,null,null,null,0,{"$f":"VLOOKUP(K446,System!$D$23:$F$27,3,TRUE)","v":5},1,5]
[null,null,null,null,null,null,null,null,null,null,0,{"$f":"VLOOKUP(K447,System!$D$23:$F$27,3,TRUE)","v":5},1,5]
[null,null,null,null,null,null,null,null,null,null,0,{"$f":"VLOOKUP(K448,System!$D$23:$F$27,3,TRUE)","v":5},1,5]
[null,null,null,null,null,null,null,null,null,null,0,{"$f":"VLOOKUP(K449,System!$D$23:$F$27,3,TRUE)","v":5},1,5]
[null,null,null,null,null,null,null,null,null,null,0,{"$f":"VLOOKUP(K450,System!$D$23:$F$27,3,TRUE)","v":5},1,5]
[null,null,null,null,null,null,null,null,null,null,0,{"$f":"VLOOKUP(K451,System!$D$23:$F$27,3,TRUE)","v":5},1,5]
[null,null,null,null,null,null,null,null,null,null,0,{"$f":"VLOOKUP(K452,System!$D$23:$F$27,3,TRUE)","v":5},1,5]
[null,null,null,null,null,null,null,null,null,null,0,{"$f":"VLOOKUP(K453,System!$D$23:$F$27,3,TRUE)","v":5},1,5]
[null,null,null,null,null,null,null,null,null,null,0,{"$f":"VLOOKUP(K454,System!$D$23:$F$27,3,TRUE)","v":5},1,5]
[null,null,null,null,null,null,null,null,null,null,0,{"$f":"VLOOKUP(K455,System!$D$23:$F$27,3,TRUE)","v":5},1,5]
[null,null,null,null,null,null,null,null,null,null,0,{"$f":"VLOOKUP(K456,System!$D$23:$F$27,3,TRUE)","v":5},1,5]
[null,null,null,null,null,null,null,null,null,null,{"$f":"SUM(F457:J457)","v":0},{"$f":"VLOOKUP(K457,System!$D$23:$F$27,3,TRUE)","v":5},1,{"$f":"L457*M457","v":5}]
[null,null,null,null,null,null,null,null,null,null,0,{"$f":"VLOOKUP(K458,System!$D$23:$F$27,3,TRUE)","v":5},1,5]
[null,null,null,null,null,null,null,null,null,null,0,{"$f":"VLOOKUP(K459,System!$D$23:$F$27,3,TRUE)","v":5},1,5]
[null,null,null,null,null,null,null,null,null,null,0,{"$f":"VLOOKUP(K460,System!$D$23:$F$27,3,TRUE)","v":5},1,5]
[null,null,null,null,null,null,null,null,null,null,0,{"$f":"VLOOKUP(K461,System!$D$23:$F$27,3,TRUE)","v":5},1,5]
[null,null,null,null,null,null,null,null,null,null,0,{"$f":"VLOOKUP(K462,System!$D$23:$F$27,3,TRUE)","v":5},1,5]
[null,null,null,null,null,null,null,null,null,null,0,{"$f":"VLOOKUP(K463,System!$D$23:$F$27,3,TRUE)","v":5},1,5]
[null,null,null,null,null,null,null,null,null,null,0,{"$f":"VLOOKUP(K464,System!$D$23:$F$27,3,TRUE)","v":5},1,5]
[null,null,null,null,null,null,null,null,null,null,0,{"$f":"VLOOKUP(K465,System!$D$23:$F$27,3,TRUE)","v":5},1,5]
[null,null,null,null,null,null,null,null,null,null,0,{"$f":"VLOOKUP(K466,System!$D$23:$F$27,3,TRUE)","v":5},1,5]
[null,null,null,null,null,null,null,null,null,null,0,{"$f":"VLOOKUP(K467,System!$D$23:$F$27,3,TRUE)","v":5},1,5]
[null,null,null,null,null,null,null,null,null,null,0,{"$f":"VLOOKUP(K468,System!$D$23:$F$27,3,TRUE)","v":5},1,5]
[null,null,null,null,null,null,null,null,null,null,0,{"$f":"VLOOKUP(K469,System!$D$23:$F$27,3,TRUE)","v":5},1,5]
[null,null,null,null,null,null,null,null,null,null,0,{"$f":"VLOOKUP(K470,System!$D$23:$F$27,3,TRUE)","v":5},1,5]
[null,null,null,null,null,null,null,null,null,null,0,{"$f":"VLOOKUP(K471,System!$D$23:$F$27,3,TRUE)","v":5},1,5]
[null,null,null,null,null,null,null,null,null,null,0,{"$f":"VLOOKUP(K472,System!$D$23:$F$27,3,TRUE)","v":5},1,5]
[null,null,null,null,null,null,null,null,null,null,0,{"$f":"VLOOKUP(K473,System!$D$23:$F$27,3,TRUE)","v":5},1,5]
[null,null,null,null,null,null,null,null,null,null,0,{"$f":"VLOOKUP(K474,System!$D$23:$F$27,3,TRUE)","v":5},1,5]
[null,null,null,null,null,null,null,null,null,null,0,{"$f":"VLOOKUP(K475,System!$D$23:$F$27,3,TRUE)","v":5},1,5]
[null,null,null,null,null,null,null,null,null,null,0,{"$f":"VLOOKUP(K476,System!$D$23:$F$27,3,TRUE)","v":5},1,5]
[null,null,null,null,null,null,null,null,null,null,0,{"$f":"VLOOKUP(K477,System!$D$23:$F$27,3,TRUE)","v":5},1,5]
[null,null,null,null,null,null,null,null,null,null,0,{"$f":"VLOOKUP(K478,System!$D$23:$F$27,3,TRUE)","v":5},1,5]
[null,null,null,null,null,null,null,null,null,null,0,{"$f":"VLOOKUP(K479,System!$D$23:$F$27,3,TRUE)","v":5},1,5]
[null,null,null,null,null,null,null,null,null,null,0,{"$f":"VLOOKUP(K480,System!$D$23:$F$27,3,TRUE)","v":5},1,5]
[null,null,null,null,null,null,null,null,null,null,0,{"$f":"VLOOKUP(K481,System!$D$23:$F$27,3,TRUE)","v":5},1,5]
[null,null,null,null,null,null,null,null,null,null,0,{"$f":"VLOOKUP(K482,System!$D$23:$F$27,3,TRUE)","v":5},1,5]
[null,null,null,null,null,null,null,null,null,null,0,{"$f":"VLOOKUP(K483,System!$D$23:$F$27,3,TRUE)","v":5},1,5]
[null,null,null,null,null,null,null,null,null,null,0,{"$f":"VLOOKUP(K484,System!$D$23:$F$27,3,TRUE)","v":5},1,5]
[null,null,null,null,null,null,null,null,null,null,0,{"$f":"VLOOKUP(K485,System!$D$23:$F$27,3,TRUE)","v":5},1,5]
[null,null,null,null,null,null,null,null,null,null,0,{"$f":"VLOOKUP(K486,System!$D$23:$F$27,3,TRUE)","v":5},1,5]
[null,null,null,null,null,null,null,null,null,null,0,{"$f":"VLOOKUP(K487,System!$D$23:$F$27,3,TRUE)","v":5},1,5]
[null,null,null,null,null,null,null,null,null,null,0,{"$f":"VLOOKUP(K488,System!$D$23:$F$27,3,TRUE)","v":5},1,5]
[null,null,null,null,null,null,null,null,null,null,0,{"$f":"VLOOKUP(K489,System!$D$23:$F$27,3,TRUE)","v":5},1,5]
[null,null,null,null,null,null,null,null,null,null,0,{"$f":"VLOOKUP(K490,System!$D$23:$F$27,3,TRUE)","v":5},1,5]
[null,null,null,null,null,null,null,null,null,null,0,{"$f":"VLOOKUP(K491,System!$D$23:$F$27,3,TRUE)","v":5},1,5]
[null,null,null,null,null,null,null,null,null,null,0,{"$f":"VLOOKUP(K492,System!$D$23:$F$27,3,TRUE)","v":5},1,5]
[null,null,null,null,null,null,null,null,null,null,0,{"$f":"VLOOKUP(K493,System!$D$23:$F$27,3,TRUE)","v":5},1,5]
[null,null,null,null,null,null,null,null,null,null,0,{"$f":"VLOOKUP(K494,System!$D$23:$F$27,3,TRUE)","v":5},1,5]
[null,null,null,null,null,null,null,null,null,null,0,{"$f":"VLOOKUP(K495,System!$D$23:$F$27,3,TRUE)","v":5},1,5]
[null,null,null,null,null,null,null,null,null,null,0,{"$f":"VLOOKUP(K496,System!$D$23:$F$27,3,TRUE)","v":5},1,5]
[null,null,null,null,null,null,null,null,null,null,0,{"$f":"VLOOKUP(K497,System!$D$23:$F$27,3,TRUE)","v":5},1,5]
[null,null,null,null,null,null,null,null,null,null,0,{"$f":"VLOOKUP(K498,System!$D$23:$F$27,3,TRUE)","v":5},1,5]
[null,null,null,null,null,null,null,null,null,null,0,{"$f":"VLOOKUP(K499,System!$D$23:$F$27,3,TRUE)","v":5},1,5]

{"sheet":"Table 7-1 Time","index":5,"n_rows":16,"n_cols":4,"rows_kept":16,"cut":false,"hidden":false,"merged":[[1,7,1,9],[4,1,4,3],[3,1,3,3],[2,1,2,3]]}
[]
[null,"WELMEC Guide 7.6:2021 Annex B - Tables"]
[]
[null,"WELMEC Guide 7.6:2021 Software Risk Assessment"]
[null,"Table 7-1: Point scores for elapsed time"]
[null,"Elapsed Time","Points","Remarks"]
[null,"less than 1 day",0,"An assumed attacker with the needed expertise, knowledge and equipment, who has access to the instrument can implement the considered attack vector in less than one day.\n"]
[null,"less than 1 week",1,"An assumed attacker with the needed expertise, knowledge and equipment, who has access to the instrument can implement the considered attack vector in less than one week, as the attacker needs to prepare a simple script to perform the attack or perform a simple strength password search.\n"]
[null,"less than 2 weeks",2,"An assumed attacker with the needed expertise, knowledge and equipment, who has access to the instrument can implement the considered attack vector in less than two weeks, as the attacker needs to prepare a simple program to perform the attack or perform a simple strength password search.\n"]
[null,"less than 1 month",4,"An assumed attacker lacks in the needed expertise, knowledge or equipment, or does not have the access to the instrument and can implement the considered attack vector in less than one month, as the attacker needs to prepare a moderate complex script to perform the attack or perform a moderate strength password search.\n"]
[null,"less than 2 months",7,"An assumed attacker lacks in the needed expertise, knowledge or equipment, or does not have the access to the instrument and can implement the considered attack vector in less than two months, as the attacker needs to prepare a moderate complex program to perform the attack or perform a moderate strength password search.\n"]
[null,"less than 3 months",10,"An assumed attacker lacks in the needed expertise, knowledge or equipment, or does not have the access to the instrument and can implement the considered attack vector in less than three months, as the attacker needs to prepare a moderate complex program to perform the attack or perform a moderate strength password search.\n"]
[null,"less than 4 months",13,"An assumed attacker lacks in the needed expertise, knowledge or equipment, or does not have the access to the instrument and can implement the considered attack vector in less than four months, as the attacker needs to prepare a complex program to perform the attack or perform a strong strength password search.\n"]
[null,"less than 5 months",15,"An assumed attacker lacks in the needed expertise, knowledge or equipment, or does not have the access to the instrument and can implement the considered attack vector in less than four months, as the attacker needs to prepare a complex program and infrastructure to perform the attack or perform a strong strength password search or simple cryptographic key.\n"]
[null,"less than 6 months",17,"An assumed attacker lacks in the needed expertise, knowledge or equipment, or does not have the access to the instrument and can implement the considered attack vector in less than four months, as the attacker needs to prepare a complex program and infrastructure to perform the attack or perform a strong strength password search or moderate cryptographic key.\n"]
[null,"more than 6 months",19,"An assumed attacker will need longer than half a year to implement the attack. This includes both steps performed on the actual instrument and preparatory work performed elsewhere, as the attacker needs to prepare a complex program and infrastructure to perform the attack or perform a strong strength password search or strong crypto-graphic key.\n"]

{"sheet":"Table 7-2 Expertise","index":6,"n_rows":10,"n_cols":4,"rows_kept":10,"cut":false,"hidden":false,"merged":[[4,1,4,3],[1,7,1,9],[2,1,2,3],[3,1,3,3]]}
[]
[null,"WELMEC Guide 7.6:2021 Annex B - Tables"]
[]
[null,"WELMEC Guide 7.6:2021 Software Risk Assessment"]
[null,"Table 7-2: Point scores for expertise "]
[null,"Expertise","Points","Remarks"]
[null,"Layman",0,"With respect to IT skills, a layman is any person able to browse websites with a PC.\n"]
[null,"Proficient",3,"A proficient user would be anyone able to find, install and use specialized software (such as a network sniffer) for a specific task.\n"]
[null,"Expert",6,"Anyone able to write, build and use specific software to perform a certain task would count as an expert.\n"]
[null,"Multiple expert",8,"The expertise level “multiple expert” should only be chosen when expertise in more than one field (software development, cryptography, hardware development) is required to implement an attack.\n"]

{"sheet":"Table 7-3 Knowledge","index":7,"n_rows":10,"n_cols":4,"rows_kept":10,"cut":false,"hidden":false,"merged":[[4,1,4,3],[1,7,1,9],[2,1,2,3],[3,1,3,3]]}
[]
[null,"WELMEC Guide 7.6:2021 Annex B - Tables"]
[]
[null,"WELMEC Guide 7.6:2021 Software Risk Assessment"]
[null,"Table 7-3: Point scores for knowledge of the system "]
[null,"Knowledge of the system","Points","Remarks"]
[null,"Public",0,"The knowledge needed to implement the attack is publicly available. Any information that can be found by searching the Internet falls into this category.\n"]
[null,"Restricted",3,"Examples for restricted knowledge are user manuals only shipped together with an instrument. Such information is available only to a restricted group of people and not to the public.\n"]
[null,"Sensitive",7,"Information only known to the manufacturer and authorized persons. An example for sensitive information would be connection settings only shared between the manufacturer and the user.\n"]
[null,"Critical",11,"Information only known to a limited number of employees of the manufacturer and possibly the conformity assessment body are classified as “critical”. A password set by a verification officer would also fall into this category.\n"]

{"sheet":"Table 7-4 Opportunity","index":8,"n_rows":11,"n_cols":4,"rows_kept":11,"cut":false,"hidden":false,"merged":[[4,1,4,3],[1,7,1,9],[2,1,2,3],[3,1,3,3]]}
[]
[null,"WELMEC Guide 7.6:2021 Annex B - Tables"]
[]
[null,"WELMEC Guide 7.6:2021 Software Risk Assessment"]
[null,"Table 7-4: Points scores for window of opportunity "]
[null,"Window of opportunity","Points","Remarks"]
[null,"Unnecessary/ unlimited access",0,"Unnecessary/unlimited access signifies that an attacker does not need to have access to the instrument to implement an attack or that there is no risk of being detected during access.\n"]
[null,"Easy ",1,"Access qualifies as easy if access to the instrument is obtainable without difficulty and if it does have to last longer than a day.\n"]
[null,"Moderate",4,"If an attacker does not need to have access to the instrument for longer than a month and if the access is probably detected this qualifies as moderate access.\n"]
[null,"Difficult",10,"Difficult access signifies that an attacker will need to directly access the instrument for more than a month and detection is highly probable.\n"]
[null,"None","**","If access to the measuring system is impossible due to time constraints, the associated attack scenario does not need to be evaluated.\n"]

{"sheet":"Table 7-5 Equipment","index":9,"n_rows":10,"n_cols":4,"rows_kept":10,"cut":false,"hidden":false,"merged":[[4,1,4,3],[1,7,1,9],[2,1,2,3],[3,1,3,3]]}
[]
[null,"WELMEC Guide 7.6:2021 Annex B - Tables"]
[]
[null,"WELMEC Guide 7.6:2021 Software Risk Assessment"]
[null,"Table 7-5: Point scores for equipment "]
[null,"Equipment","Points","Remarks"]
[null,"Standard",0,"Standard equipment is any equipment readily available such as any common tool on a PC or software that can be freely downloaded from the Internet.\n"]
[null,"Specialized",4,"If a tool needs to be bought or can be written without major effort, this falls into the category of specialized equipment.\n"]
[null,"Bespoke",7,"Bespoke equipment would be highly sophisticated software that needs to be developed specially for the purpose of attacking the instrument.\n"]
[null,"Multiple bespoke",9,"The level multiple bespoke should only be used if several bespoke tools for different purposes (cryptanalysis, software development etc.) are needed.\n"]

{"sheet":"System","index":10,"n_rows":40,"n_cols":6,"rows_kept":40,"cut":false,"hidden":false,"merged":[[39,3,39,4],[38,3,38,4],[32,3,32,4],[34,3,34,4],[35,3,35,4],[36,3,36,4],[37,3,37,4],[0,0,0,5],[28,3,28,4],[29,3,29,4],[30,3,30,4],[31,3,31,4]]}
["Software risk analysis according to WELMEC Guide 7.6 chapter 4.1"]
[]
[null,null,null,"Status"]
["Document Nr.","6030.55F01",null,"NA","Not applicable"]
["Created on/by","25.01.2023/Baha",null,"AS","Acceptable solution applied"]
["Modified on","15.05.2025",null,"RA","Risk analysis"]
["Modified by","FREI",null,"BO","RA & AS"]
["Version Nr.","1.8",null,"-","Not evaluated"]
["Verified on/by","05.12.2023/Couv"]
["Original in","QM-Dokumente_6030"]
[]
[null,null,null,"Impact"]
[null,null,null,1,"for attacks executed once affecting all future (or past)"]
[null,null,null,{"$f":"1/3","v":0.33333333333333331},"for attacks needing to be repeated for each individual measurement event"]
[]
[]
[]
[]
[]
[]
[null,null,null,"Resilience to probability score"]
[null,null,null,"Resilience from","Resilience to","Probability score"]
[null,null,null,0,9,5]
[null,null,null,10,13,4]
[null,null,null,14,19,3]
[null,null,null,20,24,2]
[null,null,null,25,1000,1]
[]
[null,null,null,"Created by"]
[null,null,null,"Eidgenössisches Institut für Metrologie METAS"]
[null,null,null,"Lindenweg 50"]
[null,null,null,"CH-3003 Bern-Wabern"]
[null,null,null,"SWITZERLAND"]
[]
[null,null,null,"Modified by"]
[null,null,null,"Physikalisch-Technische Bundesanstalt PTB"]
[null,null,null,"Bundesallee 100"]
[null,null,null,"38116 Braunchweig"]
[null,null,null,"GERMANY"]
[null,null,null,"E-Mail: softwaretest@ptb.de"]